Workbook

Sheet UEM
A1: MINISTÉRIO DA INTEGRAÇÃO E DO DESENVOLVIMENTO REGIONAL | J1: BDI serviç | K1: 1.2591
A2: COMPANHIA DE DESENVOLVIMENTO DOS VALES DO SÃO FRANCISCO E DO PARNAÍBA | J2: BDI fornec. | K2: 1.136
A3: SEDE
A4: PLANILHA ORÇAMENTÁRIA DE ESTIMATIVA GERAL PARA O ESTADO DE PERNAMBUCO (15ª SR) | H4: Base SINAPI-PE 03/2025 ORSE 02/2025
H5: Data: Maio/2025
A7: Item | B7: Base | C7: Código | D7: Descrição | E7: Unid. | F7: Quant. | G7: Valor (R$)
G8: Unit. (sem BDI) | H8: Unit. (com BDI) | I8: Total
A10: 11 | D10: UNIDADE DE EXTRAÇÃO DE MEL | I10: =SUM(I12,I15,I21,I28,I34,I36,I40,I43,I48,I54) -> 246496.89
A12: 11.1 | D12: SERVIÇOS PRELIMINARES | I12: =SUM(I13:I14) -> 3668.08
A13: 11.2 | B13: sinapi | C13: 105009 | D13: =[1]CPU!$A$91 -> LOCAÇÃO DE OBRAS | E13: =[1]CPU!$I$91 -> m² | F13: =(7.89*2+9.6*2) -> 34.98 | G13: =J13 -> 81.86 | H13: =G13*K$1 -> 103.069926 | I13: =ROUND(F13*H13,2) -> 3605.39 | J13: 81.86
A14: 11.3 | B14: Sinapi | C14: 98525 | D14: LIMPEZA MECANIZADA DE CAMADA VEGETAL, VEGETAÇÃO E PEQUENAS ÁRVORES (DIÂMETRO DE TRONCO MENOR QUE 0,20 M), COM TRATOR DE ESTEIRAS. | E14: m² | F14: =9.56*7.891 -> 75.43796 | G14: =J14 -> 0.66 | H14: =G14*K$1 -> 0.831006 | I14: =ROUND(F14*H14,2) -> 62.69 | J14: 0.66
A15: 11.4 | D15: MOVIMENTO DE TERRA | I15: =SUM(I16:I20) -> 1379.93
A16: 11.5 | B16: Sinapi | C16: 101230 | D16: ESCAVAÇÃO VERTICAL A CÉU ABERTO, EM OBRAS DE INFRAESTRUTURA, INCLUINDO CARGA, DESCARGA E TRANSPORTE, EM SOLO DE 1ª CATEGORIA COM ESCAVADEIRA HIDRÁULICA (CAÇAMBA: 0,8 M³ / 111 HP) | E16: m³ | F16: 11.2 | G16: =J16 -> 11.36 | H16: =G16*K$1 -> 14.303376 | I16: =ROUND(F16*H16,2) -> 160.2 | J16: 11.36
A17: 11.6 | B17: Sinapi | C17: 100577 | D17: REGULARIZAÇÃO E COMPACTAÇÃO DE SUBLEITO DE SOLO PREDOMINANTEMENTE ARENOSO. | E17: m² | F17: =9.6*7.9*0.6 -> 45.504 | G17: 0.45 | H17: =G17*K$1 -> 0.566595 | I17: =ROUND(F17*H17,2) -> 25.78 | J17: 0.45
A18: 11.7 | B18: Sinapi | C18: 96385 | D18: EXECUÇÃO E COMPACTAÇÃO DE ATERRO COM SOLO PREDOMINANTEMENTE ARGILOSO - EXCLUSIVE SOLO, ESCAVAÇÃO, CARGA E TRANSPORTE | E18: m³ | F18: 64.4 | G18: 11.66 | H18: 14.681106 | I18: =ROUND(F18*H18,2) -> 945.46 | J18: 11.66
A19: 11.8 | B19: Sinapi | C19: 100574 | D19: ESPALHAMENTO DE MATERIAL COM TRATOR DE ESTEIRAS. | E19: m³ | F19: 19.05 | G19: 1.39 | H19: 1.750149 | I19: =ROUND(F19*H19,2) -> 33.34 | J19: 1.39
A20: 11.9 | B20: Sinapi | C20: 100973 | D20: CARGA, MANOBRA E DESCARGA DE SOLOS E MATERIAIS GRANULARES EM CAMINHÃO BASCULANTE 6 M³ - CARGA COM PÁ CARREGADEIRA (CAÇAMBA DE 1,7 A 2,8 M³ /128 HP) E DESCARGA LIVRE | E20: m³ | F20: 19.05 | G20: 8.97 | H20: 11.294127 | I20: =ROUND(F20*H20,2) -> 215.15 | J20: 8.97
A21: 11.10 | D21: FUNDAÇÕES/ ESTRUTURAS DE CONCRETO ARMADO | I21: =SUM(I22:I25) -> 5331.5
A22: 11.11 | B22: Sinapi | C22: 92802 | D22: CORTE E DOBRA DE AÇO CA-50, DIÂMETRO DE 8,0 MM | E22: kg | F22: 101.6 | G22: =J22 -> 10.32 | H22: 12.993912 | I22: =ROUND(F22*H22,2) -> 1320.18 | J22: 10.32
A23: 11.12 | B23: Sinapi | C23: 94965 | D23: CONCRETO FCK = 25MPA, TRAÇO 1:2,3:2,7 (CIMENTO/ AREIA MÉDIA/ BRITA 1) - PREPARO MECÂNICO COM BETONEIRA 400 L. | E23: m³ | F23: =2.16+1.8 -> 3.96 | G23: 493.83 | H23: 621.781353 | I23: =ROUND(F23*H23,2) -> 2462.25 | J23: 493.83
A24: 11.13 | B24: Sinapi | C24: 103673 | D24: LANÇAMENTO COM USO DE BOMBA, ADENSAMENTO E ACABAMENTO DE CONCRETO EM ESTRUTURAS. AF_02/2022 | E24: m³ | F24: 3.96 | G24: 43.63 | H24: 54.934533 | I24: =ROUND(F24*H24,2) -> 217.54 | J24: 43.63
A25: 11.14 | B25: Sinapi | C25: 97086 | D25: FABRICAÇÃO, MONTAGEM E DESMONTAGEM DE FORMA PARA RADIER, EM MADEIRA SERRADA, 4 UTILIZAÇÕES. | E25: m² | F25: 7.8 | G25: 135.58 | H25: 170.708778 | I25: =ROUND(F25*H25,2) -> 1331.53 | J25: 135.58
A26: 11.15 | D26: REVESTIMENTOS | I26: =SUM(I27:I27) -> 0
A27: 11.16 | B27: Sinapi | C27: 98555 | D27: IMPERMEABILIZAÇÃO DE SUPERFÍCIE COM ARGAMASSA POLIMÉRICA / MEMBRANA ACRÍLICA, 3 DEMÃOS. | E27: m² | F27: 0 | G27: =(J27) -> 0 | H27: =(J27*K$1) -> 0 | I27: =ROUND(F27*H27,2) -> 0
A28: 11.17 | D28: ALVENARIAS, DIVISÓRIAS E FECHAMENTOS | I28: =SUM(I29:I33) -> 26312.75
A29: 11.18 | B29: CPU | C29: CPU010 | D29: REVESTIMENTO DE PAREDES EM CHAPAS DE AÇO INOXIDÁVEL AISI 304 - APENAS INSTALAÇÃO | E29: m² | F29: 70.54 | G29: =J29 -> 42.784 | H29: =G29*K$1 -> 53.8693344 | I29: =ROUND(F29*H29,2) -> 3799.94 | J29: =CPU!I182 -> 42.784
A30: 11.19 | B30: ORSE | C30: 10280/ORSE | D30: MANTA EM LÃ DE VIDRO | E30: m² | F30: 66.278 | G30: 15.05 | H30: 18.949455 | I30: =ROUND(F30*H30,2) -> 1255.93 | J30: 15.05
A31: 11.20 | B31: CPU | C31: CPU009 | D31: CHAPA XADREZ EM ALUMINIO PARA PISO e:3mm, INCLUSO REBITE PARA FIXAÇÃO - APENAS MÃO DE OBRA | E31: m² | F31: 29.9 | G31: 400.3176 | H31: 504.0398902 | I31: =ROUND(F31*H31,2) -> 15070.79 | J31: =CPU!I169 -> 400.3176
A32: 11.21 | B32: Sinapi | C32: 96486 | D32: FORRO EM RÉGUAS DE PVC, LISO, PARA AMBIENTES COMERCIAIS, INCLUSIVE ESTRUTURA BIDIRECIONAL DE FIXAÇÃO | E32: m² | F32: 29.93 | G32: 72.72 | H32: 91.561752 | I32: =ROUND(F32*H32,2) -> 2740.44 | J32: 72.72
A33: 11.22 | B33: Sinapi | C33: 104723 | D33: PAREDE COM SISTEMA EM CHAPAS DE GESSO PARA DRYWALL, USO INTERNO, COM DUAS FACES DUPLAS E ESTRUTURA METÁLICA COM GUIAS DUPLAS PARA PAREDES COM ÁREA LÍQUIDA MENOR QUE 6 m², COM VÃOS. | E33: m² | F33: 12.096 | G33: 226.24 | H33: 284.858784 | I33: =ROUND(F33*H33,2) -> 3445.65 | J33: 226.24
A34: 11.23 | D34: PINTURAS | I34: =SUM(I35:I35) -> 10376.01
A35: 11.24 | B35: Sinapi | C35: 100751 | D35: PINTURA COM TINTA EPOXÍDICA DE ACABAMENTO PULVERIZADA SOBRE PERFIL METÁLICO EXECUTADO EM FÁBRICA (02 DEMÃOS). | E35: m² | F35: 170.3 | G35: =J35 -> 48.39 | H35: 60.927849 | I35: =ROUND(F35*H35,2) -> 10376.01 | J35: 48.39
A36: 11.25 | D36: COBERTURAS | I36: =SUM(I37:I39) -> 40753.2
A37: 11.26 | B37: ORSE | C37: 13874/ORSE | D37: ESTRUTURA METALICA P/ COBERTURA DE CRECHE PADRÃO 1 DO PADRÃO FNDE, EM LIGTH STEEL FRAME, COM PERFIS UE70 MONTANTES DE TUBO UE70, INCLUSIVE FORNECIMENTO E MONTAGEM. EXCLUSIVE TELHAS | E37: m² | F37: 96 | G37: =J37 -> 113.51 | H37: =(G37*K$1) -> 142.920441 | I37: =ROUND(F37*H37,2) -> 13720.36 | J37: 113.51
A38: 11.27 | B38: Sinapi | C38: 94216 | D38: TELHAMENTO COM TELHA METÁLICA TERMOACÚSTICA E = 30 MM, COM ATÉ 2 ÁGUAS, INCLUSO IÇAMENTO | E38: m² | F38: 96 | G38: =J38 -> 209.67 | H38: 263.995497 | I38: =ROUND(F38*H38,2) -> 25343.57 | J38: 209.67
A39: 11.28 | B39: Sinapi | C39: 94228 | D39: CALHA EM CHAPA DE AÇO GALVANIZADO NÚMERO 24, DESENVOLVIMENTO DE 50 CM, INCLUSO TRANSPORTE VERTICAL. AF_07/2019 | E39: m | F39: =16*1.1 -> 17.6 | G39: 76.23 | H39: 95.981193 | I39: =ROUND(F39*H39,2) -> 1689.27 | J39: 76.23
A40: 11.29 | D40: CONSTRUÇÃO CIVIL | I40: =SUM(I41:I42) -> 5639.24
A41: 11.30 | B41: Sinapi | C41: 91341 | D41: PORTA EM ALUMÍNIO DE ABRIR TIPO VENEZIANA COM GUARNIÇÃO, FIXAÇÃO COM PARAFUSOS - FORNECIMENTO E INSTALAÇÃO. | E41: m² | F41: 5.04 | G41: =J41 -> 485.94 | H41: 611.847054 | I41: =ROUND(F41*H41,2) -> 3083.71 | J41: 485.94
A42: 11.31 | B42: Sinapi | C42: 100674 | D42: CAIXILHO FIXO DE ALUMÍNIO PARA VIDRO (VIDRO INCLUSO), BATENTE/ REQUADRO DE 4 A 14 CM, SEM GUARNIÇÃO/ ALIZAR, FIXAÇÃO COM PARAFUSOS, VEDAÇÃO COM SILICONE, EXCLUSIVE CONTRAMARCO - FORNECIMENTO E INSTALAÇÃO. AF_11/2024 | E42: m² | F42: 3.75 | G42: 541.24 | H42: 681.475284 | I42: =ROUND(F42*H42,2) -> 2555.53 | J42: 541.24
A43: 11.32 | D43: INSTALAÇÕES PREDIAIS | I43: =SUM(I44:I47) -> 9116.97
A44: 11.33 | B44: CPU | C44: =[1]CPU!$I$63 -> CPU004 | D44: =[1]CPU!$A$65 -> EXECUÇÃO DE INSTALAÇÕES HIDROSSANITÁRIAS, EXCLUSIVE EQUIPAMENTOS | E44: =[1]CPU!$I$78 -> cj | F44: 1 | G44: =J44 -> 2969.6 | H44: 3739.02336 | I44: =ROUND(F44*H44,2) -> 3739.02 | J44: =CPU!I19 -> 2969.6
A45: 11.34 | B45: SINAPI | C45: 98052 | D45: TANQUE SÉPTICO CIRCULAR, EM CONCRETO PRÉ-MOLDADO, DIÂMETRO INTERNO = 1,10 M, ALTURA INTERNA = 2,50 M, VOLUME ÚTIL: 2138,2 L (PARA 5 CONTRIBUINTES). | E45: un | F45: 1 | G45: 1722.17 | H45: 2168.384247 | I45: =ROUND(F45*H45,2) -> 2168.38 | J45: 1722.17
A46: 11.35 | B46: SINAPI | C46: 98062 | D46: SUMIDOURO CIRCULAR, EM CONCRETO PRÉ-MOLDADO, DIÂMETRO INTERNO = 1,88 M, ALTURA INTERNA = 2,00 M, ÁREA DE INFILTRAÇÃO: 13,1 m² (PARA 5 CONTRIBUINTES) | E46: un | F46: 1 | G46: 2549.1 | H46: 3209.57181 | I46: 3209.57 | J46: 2549.1
A47: 11.36 | B47: CPU | C47: CPU002 | D47: =[1]CPU!$A$78 -> EXECUÇÃO DE INSTALAÇÕES ELÉTRICAS, EXCLUSIVE EQUIPAMENTOS | E47: =[1]CPU!$I$78 -> cj | F47: 1 | G47: 0 | H47: 0 | I47: 0 | J47: =CPU!L32 -> 0
A48: 11.37 | D48: SERVIÇOS DIVERSOS | I48: =SUM(I49:I53) -> 29589.25
A49: 11.38 | B49: CPU | C49: CPU003 | D49: =[1]CPU!$A$140 -> CORTE DE CONTAINER PARA ESQUADRIAS | E49: =[1]CPU!$I$140 -> m² | F49: 16.45 | G49: =J49 -> 201.7486 | H49: 254.0216623 | I49: =ROUND(F49*H49,2) -> 4178.66 | J49: =CPU!I50 -> 201.7486
A50: 11.39 | B50: CPU | C50: CPU004 | D50: =[1]CPU!$A$182 -> MODIFICAÇÕES NO CONTAINER COM CORTE POR ESMERILHADEIRA | E50: =[1]CPU!$I$182 -> m | F50: 58.26 | G50: 105.314 | H50: 132.6008574 | I50: 7725.33 | J50: =CPU!I92 -> 105.314
A51: 11.40 | B51: CPU | C51: CPU005 | D51: =[1]CPU!$A$200 -> MODIFICAÇÕES NO CONTAINER UNIÃO ATRAVÉS DO PROCESSO DE SOLDAGEM, INCLUSO IÇAMENTO DO CONTAINER | E51: =[1]CPU!$I$200 -> m | F51: 21.9 | G51: 369.025678 | H51: 464.6402312 | I51: 10175.62 | J51: =CPU!I114 -> 369.025678
A52: 11.41 | B52: CPU | C52: CPU011 | D52: GUARDA-CORPO DE AÇO CARBONO, MONTANTES TUBULARES DE 1.1/2" ESPAÇADOS EM 0,75M, ALTURA APROXIMADA DE 0,90M, PREPARADO COM FunO E TINTA EPÓXI NA COR AMARELA | E52: m | F52: =0.75*2*3*1.1 -> 4.95 | G52: 530.328949 | H52: 667.7371797 | I52: 3305.3 | J52: =CPU!I205 -> 530.328949
A53: 11.42 | B53: CPU | C53: CPU013 | D53: FORNECIMENTO E INSTALAÇÃO DE SUPORTE PARA CAIXA D'ÁGUA EM METALON | E53: un | F53: 1 | G53: 3339.163272 | H53: 4204.340476 | I53: 4204.34 | J53: =CPU!I259 -> 3339.163272
A54: 11.43 | D54: MATERIAIS | I54: =SUM(I55:I116) -> 114329.96
A55: 11.44 | B55: Cotação | D55: CONTAINER DRY BOX 20 PÉS 6,1X2,21X2,6 (COMPXLARGXALTU) | E55: un | F55: 2 | G55: =J55 -> 19023 | H55: =G55*K$2 -> 21610.128 | I55: =ROUND(F55*H55,2) -> 43220.26 | J55: =CPU!I222 -> 19023
A56: 11.45 | B56: Sinapi | C56: 89356 | D56: TUBO PVC, SOLDAVEL, DN 25 MM, AGUA FRIA (NBR-5648) | E56: m | F56: 12 | G56: 23.85 | H56: =G56*K$2 -> 27.0936 | I56: 325.12 | J56: 23.85
A57: 11.46 | B57: Sinapi | C57: 89357 | D57: TUBO PVC, SOLDAVEL, DN 32 MM, AGUA FRIA (NBR-5648) | E57: m | F57: 18 | G57: 32.58 | H57: 37.01088 | I57: 666.2 | J57: 32.58
A58: 11.47 | B58: Sinapi | C58: 9835 | D58: TUBO PVC SERIE NORMAL, DN 40 MM, PARA ESGOTO PREDIAL (NBR 5688) | E58: m | F58: 3 | G58: 5.92 | H58: 6.72512 | I58: 20.18 | J58: 5.92
A59: 11.48 | B59: Sinapi | C59: 9838 | D59: TUBO PVC SERIE NORMAL, DN 50 MM, PARA ESGOTO PREDIAL (NBR 5688) | E59: m | F59: 20 | G59: 9.77 | H59: 11.09872 | I59: 221.97 | J59: 9.77
A60: 11.49 | B60: Sinapi | C60: 9836 | D60: TUBO PVC SERIE NORMAL, DN 100 MM, PARA ESGOTO PREDIAL (NBR 5688) | E60: m | F60: 1 | G60: 13.55 | H60: 15.3928 | I60: 15.39 | J60: 13.55
A61: 11.50 | B61: Sinapi | C61: 89362 | D61: JOELHO 90 GRAUS, PVC, SOLDÁVEL, DN 25MM, INSTALADO EM RAMAL OU SUB-RAMAL DE ÁGUA - FORNECIMENTO E INSTALAÇÃO. AF_06/2022 | E61: un | F61: 12 | G61: 9.56 | H61: 10.86016 | I61: 130.32 | J61: 9.56
A62: 11.51 | B62: Sinapi | C62: 89367 | D62: JOELHO 90 GRAUS, PVC, SOLDÁVEL, DN 32MM, INSTALADO EM RAMAL OU SUB-RAMAL DE ÁGUA - FORNECIMENTO E INSTALAÇÃO. AF_06/2022 | E62: un | F62: 10 | G62: 13.1 | H62: 14.8816 | I62: =ROUND(F62*H62,2) -> 148.82 | J62: 13.1
A63: 11.52 | B63: Sinapi | C63: 3515 | D63: JOELHO PVC, SOLDAVEL, COM BUCHA DE LATAO, 90 GRAUS, 20 MM X 1/2", PARA AGUA FRIA | E63: un | F63: 2 | G63: 6.41 | H63: 7.28176 | I63: =ROUND(F63*H63,2) -> 14.56 | J63: 6.41
A64: 11.53 | B64: Sinapi | C64: 7121 | D64: TE PVC, SOLDAVEL, COM BUCHA DE LATAO NA BOLSA CENTRAL, 90 GRAUS, 20 MM X 1/2", PARA AGUA FRIA PREDIAL | E64: un | F64: 2 | G64: 9.02 | H64: 10.24672 | I64: =ROUND(F64*H64,2) -> 20.49 | J64: 9.02
A65: 11.54 | B65: Sinapi | C65: 798 | D65: BUCHA DE REDUCAO PVC ROSCAVEL 3/4" X 1/2" | E65: un | F65: 2 | G65: 1.16 | H65: 1.31776 | I65: =ROUND(F65*H65,2) -> 2.64 | J65: 1.16
A66: 11.55 | B66: Sinapi | C66: 103957 | D66: BUCHA DE REDUÇÃO, CURTA, PVC, SOLDÁVEL, DN 32 X 25 MM, INSTALADO EM PRUMADA DE ÁGUA - FORNECIMENTO E INSTALAÇÃO. AF_06/2022 | E66: un | F66: 2 | G66: 4.83 | H66: 5.48688 | I66: 10.97 | J66: 4.83
A67: 11.56 | B67: Sinapi | C67: 3878 | D67: LUVA PVC, ROSCAVEL, 1 1/2", AGUA FRIA PREDIAL | E67: un | F67: 2 | G67: 11.78 | H67: 13.38208 | I67: 26.76 | J67: 11.78
A68: 11.57 | B68: Sinapi | C68: 4177 | D68: NIPLE DE FERRO GALVANIZADO, COM ROSCA BSP, DE 1/2" | E68: un | F68: 2 | G68: 5.47 | H68: 6.21392 | I68: 12.43 | J68: 5.47
A69: 11.58 | B69: Sinapi | C69: 89395 | D69: TE, PVC, SOLDÁVEL, DN 25MM, INSTALADO EM RAMAL OU SUB-RAMAL DE ÁGUA - FORNECIMENTO E INSTALAÇÃO. AF_06/2022 | E69: un | F69: 3 | G69: 13.16 | H69: 14.94976 | I69: 44.85 | J69: 13.16
A70: 11.59 | B70: Sinapi | C70: 89398 | D70: TE, PVC, SOLDÁVEL, DN 32MM, INSTALADO EM RAMAL OU SUB-RAMAL DE ÁGUA - FORNECIMENTO E INSTALAÇÃO. AF_06/2022 | E70: un | F70: 3 | G70: 18.26 | H70: 20.74336 | I70: 62.23 | J70: 18.26
A71: 11.60 | B71: Sinapi | C71: 97 | D71: ADAPTADOR PVC SOLDAVEL, COM FLANGE E ANEL DE VEDACAO, 32 MM X 1", PARA CAIXA D'AGUA | E71: un | F71: 4 | G71: 18.25 | H71: =G71*$K$2 -> 20.732 | I71: 82.93 | J71: 18.25
A72: 11.61 | B72: Sinapi | C72: 11675 | D72: REGISTRO DE ESFERA, PVC, COM VOLANTE, VS, SOLDAVEL, DN 32 MM, | E72: un | F72: 4 | G72: 36.36 | H72: 41.30496 | I72: 165.22 | J72: 36.36
A73: 11.62 | B73: Sinapi | C73: 34637 | D73: CAIXA D'AGUA / RESERVATORIO EM POLIETILENO, 500 LITROS, COM TAMPA | E73: un | F73: 1 | G73: 253.93 | H73: 288.46448 | I73: 288.46 | J73: 253.93
A74: 11.63 | B74: Sinapi | C74: 94495 | D74: REGISTRO DE GAVETA BRUTO, LATÃO, ROSCÁVEL, 1" - FORNECIMENTO E INSTALAÇÃO. AF_08/2021 | E74: un | F74: 1 | G74: 68.47 | H74: 77.78192 | I74: 77.78 | J74: 68.47
A75: 11.64 | B75: Sinapi | C75: 94496 | D75: REGISTRO DE GAVETA BRUTO, LATÃO, ROSCÁVEL, 1 1/4" - FORNECIMENTO E INSTALAÇÃO. AF_08/2021 | E75: un | F75: 2 | G75: 93.3 | H75: 105.9888 | I75: 211.98 | J75: 93.3
A76: 11.65 | B76: Sinapi | C76: 7603 | D76: TORNEIRA DE METAL AMARELO, PARA TANQUE / JARDIM, DE PAREDE, SEM BICO, CANO CURTO, PADRAO POPULAR / USO GERA | E76: un | F76: 2 | G76: 46.12 | H76: 52.39232 | I76: 104.78 | J76: 46.12
A77: 11.66 | B77: Sinapi | C77: 94795 | D77: TORNEIRA DE BOIA PARA CAIXA D'ÁGUA, ROSCÁVEL, 1/2" - FORNECIMENTO E INSTALAÇÃO. AF_08/2021 | E77: un | F77: 1 | G77: 28.55 | H77: 32.4328 | I77: 32.43 | J77: 28.55
A78: 11.67 | B78: Sinapi | C78: 20080 | D78: ADESIVO PLASTICO PARA PVC, FRASCO COM 175 GR | E78: un | F78: 2 | G78: 21.07 | H78: 23.93552 | I78: =ROUND(F78*H78,2) -> 47.87 | J78: 21.07
A79: 11.68 | B79: Sinapi | C79: 3143 | D79: FITA VEDA ROSCA 18MMX25M | E79: un | F79: 1 | G79: 7.84 | H79: 8.90624 | I79: =ROUND(F79*H79,2) -> 8.91 | J79: 7.84
A80: 11.69 | B80: Sinapi | C80: 35277 | D80: CAIXA DE GORDURA EM PVC, DIAMETRO MINIMO 300 MM, DIAMETRO DE SAIDA 100 MM CAPACIDADE APROXIMADA 18 LITROS, COM TAMPA E CESTO | E80: un | F80: 1 | G80: 286.19 | H80: 325.11184 | I80: =ROUND(F80*H80,2) -> 325.11 | J80: 286.19
A81: 11.70 | B81: Sinapi | C81: 11735 | D81: PROLONGADOR PAR CAIXA DE GORDURA E INSPEÇÃO DN300, PVC | E81: un | F81: 1 | G81: 7.13 | H81: 8.09968 | I81: =ROUND(F81*H81,2) -> 8.1 | J81: 7.13
A82: 11.71 | B82: Sinapi | C82: 89482 | D82: CAIXA SIFONADA, PVC, DN 100 X 100 X 50 MM, FORNECIDA E INSTALADA EM RAMAIS DE ENCAMINHAMENTO DE ÁGUA PLUVIAL. AF_06/2022 | E82: un | F82: 5 | G82: 34.28 | H82: 38.94208 | I82: =ROUND(F82*H82,2) -> 194.71 | J82: 34.28
A83: 11.72 | B83: Sinapi | C83: 94679 | D83: CURVA 90 GRAUS, PVC, SOLDÁVEL, DN 50 MM, INSTALADO EM RESERVAÇÃO DE ÁGUA DE EDIFICAÇÃO QUE POSSUA RESERVATÓRIO DE FIBRA/FIBROCIMENTO FORNECIMENTO E INSTALAÇÃO. AF_06/2016 | E83: un | F83: 11 | G83: 22.66 | H83: 25.74176 | I83: 283.16 | J83: 22.66
A84: 11.73 | B84: Sinapi | C84: 89504 | D84: CURVA 45 GRAUS, PVC, SOLDÁVEL, DN 50MM, INSTALADO EM PRUMADA DE ÁGUA - FORNECIMENTO E INSTALAÇÃO. AF_06/2022 | E84: un | F84: 3 | G84: 16.92 | H84: 19.22112 | I84: 57.66 | J84: 16.92
A85: 11.74 | B85: Sinapi | C85: 89724 | D85: JOELHO 90 GRAUS, PVC, SERIE NORMAL, ESGOTO PREDIAL, DN 40 MM, JUNTA SOLDÁVEL, FORNECIDO E INSTALADO EM RAMAL DE DESCARGA OU RAMAL DE ESGOTO SANITÁRIO. AF_08/2022 | E85: un | F85: 1 | G85: 10.11 | H85: 11.48496 | I85: 11.48 | J85: 10.11
A86: 11.75 | B86: Sinapi | C86: 89731 | D86: JOELHO 90 GRAUS, PVC, SERIE NORMAL, ESGOTO PREDIAL, DN 50 MM, JUNTA ELÁSTICA, FORNECIDO E INSTALADO EM RAMAL DE DESCARGA OU RAMAL DE ESGOTO SANITÁRIO. AF_08/2022 | E86: un | F86: 8 | G86: 15.64 | H86: 17.76704 | I86: 142.14 | J86: 15.64
A87: 11.76 | B87: Sinapi | C87: 89563 | D87: JUNÇÃO SIMPLES, PVC, SERIE R, ÁGUA PLUVIAL, DN 50 MM, JUNTA ELÁSTICA, FORNECIDO E INSTALADO EM RAMAL DE ENCAMINHAMENTO. AF_06/2022 | E87: un | F87: 2 | G87: 34.1 | H87: 38.7376 | I87: 77.48 | J87: 34.1
A88: 11.77 | B88: Sinapi | C88: 103995 | D88: LUVA, PVC, SOLDÁVEL, DN 50MM, INSTALADO EM RAMAL DE DISTRIBUIÇÃO DE ÁGUA - FORNECIMENTO E INSTALAÇÃO. AF_06/2022 | E88: un | F88: 17 | G88: 14.85 | H88: 16.8696 | I88: 286.78 | J88: 14.85
A89: 11.78 | B89: Sinapi | C89: 104345 | D89: JUNÇÃO DE REDUÇÃO INVERTIDA, PVC, SÉRIE NORMAL, ESGOTO PREDIAL, DN 100 X 50 MM, JUNTA ELÁSTICA, FORNECIDO E INSTALADO EM RAMAL DE DESCARGA OU RAMAL DE ESGOTO SANITÁRIO. AF_08/2022 | E89: un | F89: 2 | G89: 43.16 | H89: 49.02976 | I89: 98.06 | J89: 43.16
A90: 11.79 | B90: Sinapi | C90: 20043 | D90: REDUÇÃO EXCÊNTRICA, PVC, ÁGUA PLUVIAL, DN 100 X 50 MM, LINHA NORMAL | E90: un | F90: 2 | G90: 8.16 | H90: 9.26976 | I90: =ROUND(F90*H90,2) -> 18.54 | J90: 8.16
A91: 11.80 | B91: Sinapi | C91: 86883 | D91: SIFÃO DO TIPO FLEXÍVEL EM PVC 1 X 1.1/2 - FORNECIMENTO E INSTALAÇÃO. AF_01/2020 | E91: un | F91: 1 | G91: 10.8 | H91: 12.2688 | I91: 12.27 | J91: 10.8
A92: 11.81 | B92: Sinapi | C92: 86941 | D92: LAVATÓRIO LOUÇA BRANCA COM COLUNA, 45 X 55CM OU EQUIVALENTE, PADRÃO MÉDIO, INCLUSO SIFÃO TIPO GARRAFA, VÁLVULA E ENGATE FLEXÍVEL DE 40CM EMMETAL CROMADO, COM TORNEIRA CROMADA DE MESA, PADRÃO MÉDIO - FORNECIMENTO E INSTALAÇÃO. | E92: un | F92: 1 | G92: 909.9 | H92: 1033.6464 | I92: 1033.65 | J92: 909.9
A93: 11.82 | B93: Sinapi | C93: 86936 | D93: CUBA DE EMBUTIR DE AÇO INOXIDÁVEL MÉDIA, INCLUSO VÁLVULA TIPO AMERICANA E SIFÃO TIPO GARRAFA EM METAL CROMADO - FORNECIMENTO E INSTALAÇÃO | E93: un | F93: 1 | G93: 523.63 | H93: 594.84368 | I93: 594.84 | J93: 523.63
A94: 11.83 | B94: Cotação | D94: LAVADOR DE BOTAS EM AÇO INOXIDÁVEL AISI 304 | E94: un | F94: 1 | G94: 3087.896667 | H94: 3507.850613 | I94: 3507.85 | J94: =O94 -> 3087.896667 | L94: 4192.93 | M94: 2435.76 | N94: 2635 | O94: =AVERAGE(L94:N94) -> 3087.896667
A95: 11.84 | B95: Sinapi | C95: 86906 | D95: TORNEIRA CROMADA DE MESA, 1/2 OU 3/4, PARA LAVATÓRIO, PADRÃO POPULAR - FORNECIMENTO E INSTALAÇÃO. AF_01/2020 | E95: un | F95: 2 | G95: 88.61 | H95: 100.66096 | I95: 201.32 | J95: 88.61
A96: 11.85 | B96: Sinapi | C96: 94768 | D96: ADAPTADOR COM FLANGE E ANEL DE VEDAÇÃO, CPVC, ROSCÁVEL, DN 42 MM, INSTALADO EM RESERVAÇÃO DE ÁGUA DE EDIFICAÇÃO QUE POSSUA RESERVATÓRIO DE FIBRA/FIBROCIMENTO - FORNECIMENTO E INSTALAÇÃO. AF_06/2016 | E96: un | F96: 1 | G96: 75.32 | H96: 85.56352 | I96: 85.56 | J96: 75.32
A97: 11.86 | B97: Cotação | D97: PEDALEIRA PARA ACIONAMENTO TORNEIRA, ROSCA 1/2" | E97: un | F97: 2 | G97: 145.3966667 | H97: 165.1706133 | I97: 330.34 | J97: =O97 -> 145.3966667 | L97: 133.4 | M97: 137.89 | N97: 164.9 | O97: =AVERAGE(L97:N97) -> 145.3966667
A98: 11.87 | B98: Sinapi | C98: 91924 | D98: CABO DE COBRE FLEXÍVEL ISOLADO, 1,5 Mm², ANTI-CHAMA 450/750 V, PARA CIRCUITOS TERMINAIS - FORNECIMENTO E INSTALAÇÃO. AF_03/2023 | E98: m | F98: 49 | G98: 3.11 | H98: 3.53296 | I98: 173.12 | J98: 3.11
A99: 11.88 | B99: Sinapi | C99: 91926 | D99: CABO DE COBRE, RIGIDO, CLASSE 2, ISOLACAO EM PVC/A, ANTICHAMA BWF-B, 1 CONDUTOR, 450/750 V, SECAO NOMINAL 2,5 Mm² | E99: m | F99: 180 | G99: 4.49 | H99: 5.10064 | I99: 918.12 | J99: 4.49
A100: 11.89 | B100: Sinapi | C100: 91952 | D100: INTERRUPTOR SIMPLES (1 MÓDULO), 10A/250V, SEM SUPORTE E SEM PLACA - FORNECIMENTO E INSTALAÇÃO. AF_03/2023 | E100: un | F100: 4 | G100: 18.77 | H100: 21.32272 | I100: 85.29 | J100: 18.77
A101: 11.90 | B101: Sinapi | C101: 91990 | D101: TOMADA ALTA DE EMBUTIR (1 MÓDULO), 2P+T 10 A, SEM SUPORTE E SEM PLACA - FORNECIMENTO E INSTALAÇÃO. AF_03/2023 | E101: un | F101: 1 | G101: 34.45 | H101: 39.1352 | I101: 39.14 | J101: 34.45
A102: 11.91 | B102: ORSE | C102: 11054/ORSE | D102: CAIXA METÁLICA COM UMA TOMADA 2P+T PARA INSTALAÇÃO APARENTE | E102: un | F102: 10 | G102: 27.17 | H102: 30.86512 | I102: 308.65 | J102: 27.17
A103: 11.92 | B103: Sinapi | C103: 95777 | D103: CONDULETE DE ALUMÍNIO, TIPO B, PARA ELETRODUTO DE AÇO GALVANIZADO DN 20 MM (3/4''), APARENTE - FORNECIMENTO E INSTALAÇÃO. AF_10/2022 | E103: un | F103: 5 | G103: 27.08 | H103: 30.76288 | I103: 153.81 | J103: 27.08
A104: 11.93 | B104: Sinapi | C104: 101890 | D104: DISJUNTOR MONOPOLAR TIPO NEMA, CORRENTE NOMINAL DE 10 ATÉ 30A - FORNECIMENTO E INSTALAÇÃO. AF_10/2020 | E104: un | F104: 1 | G104: 19.72 | H104: 22.40192 | I104: 22.4 | J104: 19.72
A105: 11.94 | B105: Sinapi | C105: 101892 | D105: DISJUNTOR MONOPOLAR TIPO NEMA, CORRENTE NOMINAL DE 10 ATÉ 50A - FORNECIMENTO E INSTALAÇÃO. AF_10/2020 | E105: un | F105: 7 | G105: 90.71 | H105: =G105*$K$2 -> 103.04656 | I105: 721.33 | J105: 90.71
A106: 11.95 | B106: ORSE | C106: 07943/ORSE | D106: DISJUNTOR BIPOLAR DR 25A - DISPOSITIVO DIFERENCIAL RESIDUAL, TIPO AC, 30MA | E106: un | F106: 3 | G106: 278.5 | H106: 316.376 | I106: 949.13 | J106: 278.5
A107: 11.96 | B107: Sinapi | C107: 93661 | D107: DISJUNTOR BIPOLAR TIPO DIN, CORRENTE NOMINAL DE 16A - FORNECIMENTO E INSTALAÇÃO. AF_10/2020 | E107: un | F107: 2 | G107: 73.71 | H107: 83.73456 | I107: 167.47 | J107: 73.71
A108: 11.97 | B108: Sinapi | C108: 93665 | D108: DISJUNTOR BIPOLAR TIPO DIN, CORRENTE NOMINAL DE 40A - FORNECIMENTO E INSTALAÇÃO. AF_10/2020 | E108: un | F108: 1 | G108: 79.59 | H108: 90.41424 | I108: 90.41 | J108: 79.59
A109: 11.98 | B109: ORSE | C109: 04878/ORSE | D109: PONTO DE LUZ EM TETO OU PAREDE, APARENTE SEM ELETRODUTO | E109: un | F109: 5 | G109: 65.23 | H109: 74.10128 | I109: 370.51 | J109: 65.23
A110: 11.99 | B110: ORSE | C110: 14448/ORSE | D110: ELETRODUTO DE AÇO GALVANIZADO LEVE, INCLUSIVE CONEXÕES, SUPORTES E FIXAÇÃO DN 20 (3/4") | E110: m | F110: 50 | G110: 33.67 | H110: 38.24912 | I110: 1912.46 | J110: 33.67
A111: 11.100 | B111: Sinapi | C111: 1879 | D111: CURVA 90° PVC ELETRODUTO ROSCAVEL 3/4" | E111: un | F111: 16 | G111: 4.05 | H111: 4.6008 | I111: 73.61 | J111: 4.05
A112: 11.101 | B112: Sinapi | C112: 39128 | D112: ABRAÇADEIRA GALVANIZADA "D" PARA ELETRODUTO 3/4" COM CUNHA | E112: un | F112: 50 | G112: 2.59 | H112: 2.94224 | I112: 147.11 | J112: 2.59
A113: 11.102 | B113: Sinapi | C113: 101878 | D113: QUADRO DE DISTRIBUIÇÃO DE ENERGIA EM CHAPA DE AÇO GALVANIZADO, DE SOBREPOR, COM BARRAMENTO TRIFÁSICO, PARA 18 DISJUNTORES DIN 100A - FORNECIMENTO E INSTALAÇÃO. AF_10/2020 | E113: un | F113: 1 | G113: 504.7 | H113: 573.3392 | I113: 573.34 | J113: 504.7
A114: 11.103 | B114: Sinapi | C114: 100954 | D114: TRANSPORTE COM CAMINHÃO CARROCERIA COM GUINDAUTO (MUNCK), MOMENTO MÁXIMO DE CARGA 11,7 TM, EM VIA INTERNA (DENTRO DO CANTEIRO - UNIDADE: TXKM). AF_07/2020 | E114: TXKM | F114: 800 | G114: 8.94 | H114: 10.15584 | I114: =ROUND(F114*H114,2) -> 8124.67 | J114: 8.94
A115: 11.104 | B115: CPU | C115: CPU006 | D115: REVESTIMENTO DE PAREDES EM CHAPAS DE AÇO INOXIDÁVEL AISI 304 - APENAS INSTALAÇÃO | E115: m² | F115: 70.54 | G115: 354.846 | H115: 403.105056 | I115: =ROUND(F115*H115,2) -> 28435.03 | J115: =CPU!I126 -> 354.846
A116: 11.105 | B116: CPU | C116: CPU008 | D116: CHAPA XADREZ EM ALUMINIO PARA PISO e:3mm, INCLUSO REBITE PARA FIXAÇÃO - APENAS MÃO DE OBRA | E116: m² | F116: 29.9 | G116: 524.9824 | H116: 596.3800064 | I116: =ROUND(F116*H116,2) -> 17831.76 | J116: =CPU!I157 -> 524.9824

Sheet UBF
A1: MINISTÉRIO DA INTEGRAÇÃO E DO DESENVOLVIMENTO REGIONAL | J1: BDI serviç | K1: 1.2591
A2: COMPANHIA DE DESENVOLVIMENTO DOS VALES DO SÃO FRANCISCO E DO PARNAÍBA | J2: BDI fornec. | K2: 1.136
A3: SEDE
A4: PLANILHA ORÇAMENTÁRIA DE ESTIMATIVA GERAL PARA O ESTADO DE PERNAMBUCO (15ª SR) | H4: Base SINAPI-TO 03/2025 ORSE 02/2025
H5: Data: Agosto - 2024
A7: Item | B7: Base | C7: Código | D7: Descrição | E7: Unid. | F7: Quant. | G7: Valor (R$)
G8: Unit. (sem BDI) | H8: Unit. (com BDI) | I8: Total
A10: 12 | D10: UNIDADE DE BENEFICIAMENTO DE FRUTOS | I10: =SUM(I11,I14,I20,I25,I31,I33,I37,I43,I48,I55) -> 378912.3415
A11: 12.1 | D11: SERVIÇOS PRELIMINARES | I11: =SUM(I12:I13) -> 5278.15
A12: 12.2 | B12: sinapi | C12: 105009 | D12: =[1]CPU!$A$91 -> LOCAÇÃO DE OBRAS | E12: m | F12: =15+10+15+10 -> 50 | G12: =J12 -> 81.86 | H12: =(G12*K$1) -> 103.069926 | I12: =ROUND(F12*H12,2) -> 5153.5 | J12: 81.86
A13: 12.3 | B13: Sinapi | C13: 98525 | D13: LIMPEZA MECANIZADA DE CAMADA VEGETAL, VEGETAÇÃO E PEQUENAS ÁRVORES (DIÂMETRO DE TRONCO MENOR QUE 0,20 M), COM TRATOR DE ESTEIRAS. | E13: m² | F13: =15*10 -> 150 | G13: =J13 -> 0.66 | H13: =(G13*K$1) -> 0.831006 | I13: =ROUND(F13*H13,2) -> 124.65 | J13: 0.66
A14: 12.4 | D14: MOVIMENTO DE TERRA | I14: =SUM(I15:I19) -> 2947.64
A15: 12.5 | B15: Sinapi | C15: 101230 | D15: ESCAVAÇÃO VERTICAL A CÉU ABERTO, EM OBRAS DE INFRAESTRUTURA, INCLUINDO CARGA, DESCARGA E TRANSPORTE, EM SOLO DE 1ª CATEGORIA COM ESCAVADEIRA HIDRÁULICA (CAÇAMBA: 0,8 M³ / 111 HP) | E15: m³ | F15: 54.76 | G15: =J15 -> 11.36 | H15: =G15*$K$1 -> 14.303376 | I15: =ROUND(F15*H15,2) -> 783.25 | J15: 11.36
A16: 12.6 | B16: Sinapi | C16: 100577 | D16: REGULARIZAÇÃO E COMPACTAÇÃO DE SUBLEITO DE SOLO PREDOMINANTEMENTE ARENOSO. | E16: m² | F16: 150 | G16: 0.45 | H16: =G16*$K$1 -> 0.566595 | I16: =ROUND(F16*H16,2) -> 84.99 | J16: 0.45
A17: 12.7 | B17: Sinapi | C17: 96385 | D17: EXECUÇÃO E COMPACTAÇÃO DE ATERRO COM SOLO PREDOMINANTEMENTE ARGILOSO - EXCLUSIVE SOLO, ESCAVAÇÃO, CARGA E TRANSPORTE | E17: m³ | F17: 75 | G17: 11.66 | H17: =G17*$K$1 -> 14.681106 | I17: =ROUND(F17*H17,2) -> 1101.08 | J17: 11.66
A18: 12.8 | B18: Sinapi | C18: 100574 | D18: ESPALHAMENTO DE MATERIAL COM TRATOR DE ESTEIRAS. | E18: m³ | F18: 75 | G18: 1.39 | H18: =G18*$K$1 -> 1.750149 | I18: =ROUND(F18*H18,2) -> 131.26 | J18: 1.39
A19: 12.9 | B19: Sinapi | C19: 100973 | D19: CARGA, MANOBRA E DESCARGA DE SOLOS E MATERIAIS GRANULARES EM CAMINHÃO BASCULANTE 6 M³ - CARGA COM PÁ CARREGADEIRA (CAÇAMBA DE 1,7 A 2,8 M³ /128 HP) E DESCARGA LIVRE | E19: m³ | F19: 75 | G19: 8.97 | H19: =G19*$K$1 -> 11.294127 | I19: =ROUND(F19*H19,2) -> 847.06 | J19: 8.97
A20: 12.10 | D20: FUNDAÇÕES/ ESTRUTURAS DE CONCRETO ARMADO | I20: =SUM(I21:I24) -> 14155.88146
A21: 12.11 | B21: Sinapi | C21: 92802 | D21: CORTE E DOBRA DE AÇO CA-50, DIÂMETRO DE 8,0 MM | E21: kg | F21: 101.6 | G21: =J21 -> 10.32 | H21: =G21*K$1 -> 12.993912 | I21: =H21*F21 -> 1320.181459 | J21: 10.32
A22: 12.12 | B22: Sinapi | C22: 94965 | D22: CONCRETO FCK = 25MPA, TRAÇO 1:2,3:2,7 (CIMENTO/ AREIA MÉDIA/ BRITA 1) - PREPARO MECÂNICO COM BETONEIRA 400 L. | E22: m³ | F22: 17 | G22: 493.83 | H22: =G22*K$1 -> 621.781353 | I22: =ROUND(F22*H22,2) -> 10570.28 | J22: 493.83
A23: 12.13 | B23: Sinapi | C23: 103673 | D23: LANÇAMENTO COM USO DE BOMBA, ADENSAMENTO E ACABAMENTO DE CONCRETO EM ESTRUTURAS. AF_02/2022 | E23: m³ | F23: 17 | G23: 43.63 | H23: 54.934533 | I23: =ROUND(F23*H23,2) -> 933.89 | J23: 43.63
A24: 12.14 | B24: Sinapi | C24: 97086 | D24: FABRICAÇÃO, MONTAGEM E DESMONTAGEM DE FORMA PARA RADIER, EM MADEIRA SERRADA, 4 UTILIZAÇÕES. | E24: m² | F24: 7.8 | G24: 135.58 | H24: 170.708778 | I24: =ROUND(F24*H24,2) -> 1331.53 | J24: 135.58
A25: 12.15 | D25: ALVENARIAS, DIVISÓRIAS E FECHAMENTOS | I25: =SUM(I26:I30) -> 58066.04
A26: 12.16 | B26: CPU | C26: CPU010 | D26: REVESTIMENTO DE PAREDES EM CHAPAS DE AÇO INOXIDÁVEL AISI 304 - APENAS INSTALAÇÃO | E26: m² | F26: 160.29 | G26: =J26 -> 42.784 | H26: =G26*K$1 -> 53.8693344 | I26: =ROUND(F26*H26,2) -> 8634.72 | J26: =CPU!I182 -> 42.784
A27: 12.17 | B27: ORSE | C27: 10280/ORSE | D27: MANTA EM LÃ DE VIDRO | E27: m² | F27: 134.78 | G27: 22.3 | H27: =G27*K$1 -> 28.07793 | I27: =ROUND(F27*H27,2) -> 3784.34 | J27: 22.3
A28: 12.18 | B28: CPU | C28: CPU008 | D28: CHAPA XADREZ EM ALUMINIO PARA PISO e:3mm, INCLUSO REBITE PARA FIXAÇÃO - APENAS INSTALAÇÃO | E28: m² | F28: 56.544 | G28: 400.3176 | H28: 504.0398902 | I28: =ROUND(F28*H28,2) -> 28500.43 | J28: =CPU!I169 -> 400.3176
A29: 12.19 | B29: Sinapi | C29: 104723 | D29: PAREDE COM SISTEMA EM CHAPAS DE GESSO PARA DRYWALL, USO INTERNO, COM DUAS FACES DUPLAS E ESTRUTURA METÁLICA COM GUIAS DUPLAS PARA PAREDES COM ÁREA LÍQUIDA MENOR QUE 6 m², COM VÃOS. | E29: m² | F29: 42.8 | G29: 226.24 | H29: 284.858784 | I29: =ROUND(F29*H29,2) -> 12191.96 | J29: 226.24
A30: 12.20 | B30: Sinapi | C30: 96486 | D30: FORRO EM RÉGUAS DE PVC, LISO, PARA AMBIENTES COMERCIAIS, INCLUSIVE ESTRUTURA BIDIRECIONAL DE FIXAÇÃO | E30: m² | F30: 54.112 | G30: 72.72 | H30: =G30*K$1 -> 91.561752 | I30: =ROUND(F30*H30,2) -> 4954.59 | J30: 72.72
A31: 12.21 | D31: PINTURAS | I31: =SUM(I32:I32) -> 16078.86
A32: 12.22 | B32: Sinapi | C32: 100751 | D32: PINTURA COM TINTA EPOXÍDICA DE ACABAMENTO PULVERIZADA SOBRE PERFIL METÁLICO EXECUTADO EM FÁBRICA (02 DEMÃOS). | E32: m² | F32: 263.9 | G32: =J32 -> 48.39 | H32: =G32*K$1 -> 60.927849 | I32: =ROUND(F32*H32,2) -> 16078.86 | J32: 48.39
A33: 12.23 | D33: COBERTURAS | I33: =SUM(I34:I36) -> 41776.33
A34: 12.24 | B34: ORSE | C34: 13874/ORSE | D34: ESTRUTURA METALICA P/ COBERTURA DE CRECHE PADRÃO 1 DO PADRÃO FNDE, EM LIGTH STEEL FRAME, COM PERFIS UE70 MONTANTES DE TUBO UE70, INCLUSIVE FORNECIMENTO E MONTAGEM. EXCLUSIVE TELHAS | E34: m² | F34: 98.42 | G34: =J34 -> 113.51 | H34: =(G34*K$1) -> 142.920441 | I34: =ROUND(F34*H34,2) -> 14066.23 | J34: 113.51
A35: 12.25 | B35: Sinapi | C35: 94216 | D35: TELHAMENTO COM TELHA METÁLICA TERMOACÚSTICA E = 30 MM, COM ATÉ 2 ÁGUAS, INCLUSO IÇAMENTO | E35: m² | F35: 98.42 | G35: =J35 -> 209.67 | H35: =G35*K$1 -> 263.995497 | I35: =ROUND(F35*H35,2) -> 25982.44 | J35: 209.67
A36: 12.26 | B36: Sinapi | C36: 94228 | D36: CALHA EM CHAPA DE AÇO GALVANIZADO NÚMERO 24, DESENVOLVIMENTO DE 50 CM, INCLUSO TRANSPORTE VERTICAL. AF_07/2019 | E36: m | F36: 18 | G36: 76.23 | H36: 95.981193 | I36: =ROUND(F36*H36,2) -> 1727.66 | J36: 76.23
A37: 12.27 | D37: CONSTRUÇÃO CIVIL | I37: =SUM(I38:I42) -> 31590.37
A38: 12.28 | B38: Sinapi | C38: 100702 | D38: PORTA DE CORRER DE ALUMÍNIO, COM DUAS FOLHAS PARA VIDRO, INCLUSO VIDRO LISO INCOLOR, FECHADURA E PUXADOR, SEM ALIZAR. | E38: m² | F38: 4.85 | G38: =J38 -> 340.38 | H38: 428.572458 | I38: =ROUND(F38*H38,2) -> 2078.58 | J38: 340.38
A39: 12.29 | B39: Sinapi | C39: 91341 | D39: PORTA EM ALUMÍNIO DE ABRIR TIPO VENEZIANA COM GUARNIÇÃO, FIXAÇÃO COM PARAFUSOS - FORNECIMENTO E INSTALAÇÃO. | E39: m² | F39: 3.8 | G39: 485.94 | H39: 611.847054 | I39: =ROUND(F39*H39,2) -> 2325.02 | J39: 485.94
A40: 12.30 | B40: Sinapi | C40: 100674 | D40: CAIXILHO FIXO DE ALUMÍNIO PARA VIDRO (VIDRO INCLUSO), BATENTE/ REQUADRO DE 4 A 14 CM, SEM GUARNIÇÃO/ ALIZAR, FIXAÇÃO COM PARAFUSOS, VEDAÇÃO COM SILICONE, EXCLUSIVE CONTRAMARCO - FORNECIMENTO E INSTALAÇÃO. AF_11/2024 | E40: m² | F40: 8.85 | G40: 405.48 | H40: 510.539868 | I40: =ROUND(F40*H40,2) -> 4518.28 | J40: 405.48
A41: 12.31 | B41: Sinapi | C41: 101727 | D41: PISO VINÍLICO SEMI-FLEXÍVEL EM PLACAS, PADRÃO LISO, ESPESSURA 3,2 MM, FIXADO COM COLA. AF_09/2020 | E41: m² | F41: 60 | G41: 269.57 | H41: 339.415587 | I41: =ROUND(F41*H41,2) -> 20364.94 | J41: 269.57
A42: 12.32 | B42: Sinapi | C42: 94228 | D42: CALHA EM CHAPA DE AÇO GALVANIZADO NÚMERO 24, DESENVOLVIMENTO DE 50 CM, INCLUSO TRANSPORTE VERTICAL. AF_07/2019 | E42: m | F42: 24 | G42: 76.23 | H42: 95.981193 | I42: =ROUND(F42*H42,2) -> 2303.55 | J42: 76.23
A43: 12.33 | D43: INSTALAÇÕES PREDIAIS | I43: =SUM(I44:I47) -> 14056.15
A44: 12.34 | B44: CPU | C44: CPU001 | D44: =[2]CPU!$A$65 -> EXECUÇÃO DE INSTALAÇÕES HIDROSSANITÁRIAS, EXCLUSIVE EQUIPAMENTOS | E44: =[2]CPU!$I$78 -> cj | F44: 1 | G44: =J44 -> 2969.6 | H44: 3739.02336 | I44: =ROUND(F44*H44,2) -> 3739.02 | J44: =CPU!I19 -> 2969.6
A45: 12.35 | B45: CPU | C45: CPU002 | D45: =[2]CPU!$A$78 -> EXECUÇÃO DE INSTALAÇÕES ELÉTRICAS, EXCLUSIVE EQUIPAMENTOS | E45: =[2]CPU!$I$78 -> cj | F45: 1 | G45: 3094 | H45: 3895.6554 | I45: =ROUND(F45*H45,2) -> 3895.66 | J45: =CPU!I32 -> 3094
A46: 12.36 | B46: SINAPI | C46: 98052 | D46: TANQUE SÉPTICO CIRCULAR, EM CONCRETO PRÉ-MOLDADO, DIÂMETRO INTERNO = 1,10 M, ALTURA INTERNA = 2,50 M, VOLUME ÚTIL: 2138,2 L (PARA 5 CONTRIBUINTES). | E46: UND | F46: 1 | G46: 2549.1 | H46: 3209.57181 | I46: =ROUND(F46*H46,2) -> 3209.57 | J46: 2549.1
A47: 12.37 | B47: SINAPI | C47: 98062 | D47: SUMIDOURO CIRCULAR, EM CONCRETO PRÉ-MOLDADO, DIÂMETRO INTERNO = 1,88 M, ALTURA INTERNA = 2,00 M, ÁREA DE INFILTRAÇÃO: 13,1 m² (PARA 5 CONTRIBUINTES) | E47: UND | F47: 1 | G47: 2550.95 | H47: 3211.901145 | I47: 3211.9 | J47: 2550.95
A48: 12.38 | D48: SERVIÇOS DIVERSOS | I48: =SUM(I49:I54) -> 33677.99
A49: 12.39 | B49: CPU | C49: CPU003 | D49: =[2]CPU!$A$140 -> CORTE DE CONTAINER PARA ESQUADRIAS | E49: =[2]CPU!$I$140 -> m² | F49: 12.65 | G49: =J49 -> 201.7486 | H49: =G49*K$1 -> 254.0216623 | I49: =ROUND(F49*H49,2) -> 3213.37 | J49: =CPU!I50 -> 201.7486
A50: 12.40 | B50: CPU | C50: CPU004 | D50: =[2]CPU!$A$182 -> MODIFICAÇÕES NO CONTAINER COM CORTE POR ESMERILHADEIRA | E50: =[2]CPU!$I$182 -> m | F50: 57.68 | G50: 105.314 | H50: =G50*K$1 -> 132.6008574 | I50: =ROUND(F50*H50,2) -> 7648.42 | J50: =CPU!I92 -> 105.314
A51: 12.41 | B51: CPU | C51: CPU005 | D51: =[2]CPU!$A$200 -> MODIFICAÇÕES NO CONTAINER UNIÃO ATRAVÉS DO PROCESSO DE SOLDAGEM, INCLUSO IÇAMENTO DO CONTAINER | E51: =[2]CPU!$I$200 -> m | F51: 40.8 | G51: 305.13 | H51: =G51*K$1 -> 384.189183 | I51: =ROUND(F51*H51,2) -> 15674.92 | J51: 305.13
A52: 12.42 | B52: ORSE | C52: 00900/ORSE | D52: ESCADA DE FERRO COM GUARDA-CORPO | E52: m | F52: 0.9 | G52: 1472.16 | H52: =G52*K$1 -> 1853.596656 | I52: =ROUND(F52*H52,2) -> 1668.24 | J52: 1472.16
A53: 12.43 | B53: CPU | C53: CPU011 | D53: GUARDA-CORPO DE AÇO CARBONO, MONTANTES TUBULARES DE 1.1/2" ESPAÇADOS EM 0,75M, ALTURA APROXIMADA DE 0,90M, PREPARADO COM FUNDO E TINTA EPÓXI NA COR AMARELA | E53: m | F53: 1.9 | G53: 530.328949 | H53: 667.7371797 | I53: 1268.7 | J53: =CPU!I205 -> 530.328949
A54: 12.44 | B54: CPU | C54: CPU013 | D54: FORNECIMENTO E INSTALAÇÃO DE SUPORTE PARA CAIXA D'ÁGUA EM METALON | E54: un | F54: 1 | G54: 3339.163272 | H54: =G54*K$1 -> 4204.340476 | I54: =ROUND(F54*H54,2) -> 4204.34 | J54: =CPU!I259 -> 3339.163272
A55: 12.45 | D55: MATERIAIS | I55: =SUM(I56:I104) -> 161284.93
A56: 12.46 | B56: Cotação | D56: CONTAINER HIGH CUBE 40 PÉS 12,2X2,3X2,9 (COMPXLARGXALTU) | E56: un | F56: 2 | G56: =J56 -> 20159 | H56: =G56*K$2 -> 22900.624 | I56: =ROUND(F56*H56,2) -> 45801.25 | J56: =CPU!I239 -> 20159
A57: 12.47 | B57: Sinapi | C57: 89356 | D57: TUBO PVC, SOLDAVEL, DN 25 MM, AGUA FRIA (NBR-5648) | E57: m | F57: 6 | G57: 23.85 | H57: =G57*K$2 -> 27.0936 | I57: =ROUND(F57*H57,2) -> 162.56 | J57: 23.85
A58: 12.48 | B58: Sinapi | C58: 89357 | D58: TUBO PVC, SOLDAVEL, DN 32 MM, AGUA FRIA (NBR-5648) | E58: m | F58: 18 | G58: 32.58 | H58: 37.01088 | I58: =ROUND(F58*H58,2) -> 666.2 | J58: 32.58
A59: 12.49 | B59: Sinapi | C59: 89448 | D59: TUBO PVC, SOLDAVEL, DN 40 MM, AGUA FRIA (NBR-5648) | E59: m | F59: 15.97 | G59: 14.77 | H59: 16.77872 | I59: =ROUND(F59*H59,2) -> 267.96 | J59: 14.77
A60: 12.50 | B60: Sinapi | C60: 9838 | D60: TUBO PVC SERIE NORMAL, DN 50 MM, PARA ESGOTO PREDIAL (NBR 5688) | E60: m | F60: 30 | G60: 9.77 | H60: 11.09872 | I60: 332.96 | J60: 9.77
A61: 12.51 | B61: Sinapi | C61: 89362 | D61: JOELHO 90 GRAUS, PVC, SOLDÁVEL, DN 25MM, INSTALADO EM RAMAL OU SUB-RAMAL DE ÁGUA - FORNECIMENTO E INSTALAÇÃO. AF_06/2022 | E61: un | F61: 5 | G61: 9.56 | H61: 10.86016 | I61: 54.3 | J61: 9.56
A62: 12.52 | B62: Sinapi | C62: 89367 | D62: JOELHO 90 GRAUS, PVC, SOLDÁVEL, DN 32MM, INSTALADO EM RAMAL OU SUB-RAMAL DE ÁGUA - FORNECIMENTO E INSTALAÇÃO. AF_06/2022 | E62: un | F62: 4 | G62: 13.1 | H62: 14.8816 | I62: 59.53 | J62: 13.1
A63: 12.53 | B63: Sinapi | C63: 89497 | D63: JOELHO 90 GRAUS, PVC, SOLDÁVEL, DN 40MM, INSTALADO EM PRUMADA DE ÁGUA - FORNECIMENTO E INSTALAÇÃO. AF_06/2022 | E63: un | F63: 3 | G63: 12.95 | H63: 14.7112 | I63: 44.13 | J63: 12.95
A64: 12.54 | B64: Sinapi | C64: 3874 | D64: LUVA SOLDAVEL COM BUCHA DE LATÃO DN25X1/2" | E64: un | F64: 5 | G64: 5.45 | H64: 6.1912 | I64: 30.96 | J64: 5.45
A65: 12.55 | B65: Sinapi | C65: 12909 | D65: CAP PVC, SOLDAVEL, DN 50 MM, SERIE NORMAL, PARA ESGOTO PREDIAL | E65: un | F65: 3 | G65: 4.07 | H65: 4.62352 | I65: 13.87 | J65: 4.07
A66: 12.56 | B66: Sinapi | C66: 7136 | D66: TE DE REDUCAO, PVC, SOLDAVEL, 90 GRAUS, 32 MM X 25 MM, PARA AGUA FRIA PREDIAL | E66: un | F66: 5 | G66: 6.58 | H66: 7.47488 | I66: 37.37 | J66: 6.58
A67: 12.57 | B67: Sinapi | C67: 97 | D67: ADAPTADOR PVC SOLDAVEL, COM FLANGE E ANEL DE VEDACAO, 32 MM X 1", PARA CAIXA D'ÁGUA | E67: un | F67: 1 | G67: 18.25 | H67: 20.732 | I67: 20.73 | J67: 18.25
A68: 12.58 | B68: Sinapi | C68: 98 | D68: ADAPTADOR PVC SOLDAVEL, COM FLANGE E ANEL DE VEDACAO, 40 MM X 1 1/4", PARA CAIXA D'ÁGUA | E68: un | F68: 1 | G68: 25.82 | H68: 29.33152 | I68: 29.33 | J68: 25.82
A69: 12.59 | B69: Sinapi | C69: 11871 | D69: CAIXA D'AGUA EM POLIETILENO 500 LITROS, COM TAMPA | E69: un | F69: 1 | G69: 424.66 | H69: 482.41376 | I69: 482.41 | J69: 424.66
A70: 12.60 | B70: Sinapi | C70: 94795 | D70: TORNEIRA DE BOIA PARA CAIXA D'ÁGUA, ROSCÁVEL, 1/2" - FORNECIMENTO E INSTALAÇÃO. AF_08/2021 | E70: un | F70: 1 | G70: 28.55 | H70: 32.4328 | I70: 32.43 | J70: 28.55
A71: 12.61 | B71: Sinapi | C71: 799 | D71: BUCHA DE REDUCAO PVC, ROSCAVEL, 1" X 1/2" | E71: un | F71: 1 | G71: 3.46 | H71: 3.93056 | I71: 3.93 | J71: 3.46
A72: 12.62 | B72: Sinapi | C72: 11746 | D72: VALVULA DE ESFERA BRUTA EM BRONZE, BITOLA 1” | E72: un | F72: 1 | G72: 85.24 | H72: 96.83264 | I72: 96.83 | J72: 85.24
A73: 12.63 | B73: Sinapi | C73: 4177 | D73: NIPLE DE FERRO GALVANIZADO, COM ROSCA BSP, DE 1/2" | E73: un | F73: 1 | G73: 5.47 | H73: 6.21392 | I73: 6.21 | J73: 5.47
A74: 12.64 | B74: Sinapi | C74: 3855 | D74: LUVA SOLDAVEL COM BUCHA DE LATÃO DN25X1/2" | E74: un | F74: 1 | G74: 5.08 | H74: 5.77088 | I74: 5.77 | J74: 5.08
A75: 12.65 | B75: Sinapi | C75: 11674 | D75: REGISTRO ESFERA PVC DN25 SOLDAVEL | E75: un | F75: 1 | G75: 22.9 | H75: 26.0144 | I75: 26.01 | J75: 22.9
A76: 12.66 | B76: Sinapi | C76: 35277 | D76: CAIXA DE GORDURA EM PVC, DIAMETRO MINIMO 300 MM, DIAMETRO DE SAIDA 100 MM CAPACIDADE APROXIMADA 18 LITROS, COM TAMPA E CESTO | E76: un | F76: 2 | G76: 286.19 | H76: 325.11184 | I76: 650.22 | J76: 286.19
A77: 12.67 | B77: Sinapi | C77: 89482 | D77: CAIXA SIFONADA, PVC, DN 100 X 100 X 50 MM, FORNECIDA E INSTALADA EM RAMAIS DE ENCAMINHAMENTO DE ÁGUA PLUVIAL. AF_06/2022 | E77: un | F77: 5 | G77: 33.39 | H77: 37.93104 | I77: 189.66 | J77: 33.39
A78: 12.68 | B78: Sinapi | C78: 89502 | D78: JOELHO 45 GRAUS, PVC, SOLDÁVEL, DN 50MM, INSTALADO EM PRUMADA DE ÁGUA - FORNECIMENTO E INSTALAÇÃO. AF_06/2022 | E78: un | F78: 4 | G78: 16.54 | H78: 18.78944 | I78: 75.16 | J78: 16.54
A79: 12.69 | B79: Sinapi | C79: 89501 | D79: JOELHO 90 GRAUS, PVC, SOLDÁVEL, DN 50MM, INSTALADO EM PRUMADA DE ÁGUA - FORNECIMENTO E INSTALAÇÃO. AF_06/2022 | E79: un | F79: 10 | G79: 14.09 | H79: 16.00624 | I79: 160.06 | J79: 14.09
A80: 12.70 | B80: Sinapi | C80: 103995 | D80: LUVA, PVC, SOLDÁVEL, DN 50MM, INSTALADO EM RAMAL DE DISTRIBUIÇÃO DE ÁGUA - FORNECIMENTO E INSTALAÇÃO. AF_06/2022 | E80: un | F80: 21 | G80: 14.85 | H80: 16.8696 | I80: 354.26 | J80: 14.85
A81: 12.71 | B81: Sinapi | C81: 89567 | D81: JUNÇÃO SIMPLES, PVC, SERIE R, ÁGUA PLUVIAL, DN 100 X 100 MM, JUNTA ELÁSTICA, FORNECIDO E INSTALADO EM RAMAL DE ENCAMINHAMENTO. AF_06/2022 | E81: un | F81: 6 | G81: 76.65 | H81: 87.0744 | I81: 522.45 | J81: 76.65
A82: 12.72 | B82: Sinapi | C82: 12909 | D82: CAP PVC, SOLDAVEL, DN 50 MM, SERIE NORMAL, PARA ESGOTO | E82: un | F82: 1 | G82: 4.07 | H82: 4.62352 | I82: 4.62 | J82: 4.07
A83: 12.73 | B83: Sinapi | C83: 34628 | D83: DISJUNTOR TIPO DIN/IEC, BIPOLAR 63 A | E83: un | F83: 1 | G83: 93.63 | H83: 106.36368 | I83: 106.36 | J83: 93.63
A84: 12.74 | B84: Sinapi | C84: 34616 | D84: DISJUNTOR TIPO DIN/IEC, BIPOLAR DE 6 ATE 32A | E84: un | F84: 6 | G84: 66.39 | H84: 75.41904 | I84: 452.51 | J84: 66.39
A85: 12.75 | B85: ORSE | C85: 07943/ORSE | D85: DISJUNTOR BIPOLAR DR 25A - DISPOSITIVO DIFERENCIAL RESIDUAL, TIPO AC, 30MA | E85: un | F85: 3 | G85: 278.5 | H85: 316.376 | I85: 949.13 | J85: 278.5
A86: 12.76 | B86: Sinapi | C86: 39805 | D86: QUADRO DE DISTRIBUICAO, EM PVC, DE EMBUTIR, COM BARRAMENTO TERRA / NEUTRO, PARA 12 DISJUNTORES NEMA OU 16 DISJUNTORES DIN | E86: un | F86: 1 | G86: 209.38 | H86: 237.85568 | I86: 237.86 | J86: 209.38
A87: 12.77 | B87: Sinapi | C87: 1014 | D87: CABO DE COBRE, FLEXIVEL, CLASSE 4 OU 5, ISOLACAO EM PVC/A, ANTICHAMA BWF-B, 1 CONDUTOR, 450/750 V, SECAO NOMINAL 2,5 Mm² | E87: m | F87: 397.5 | G87: 2.34 | H87: 2.65824 | I87: 1056.65 | J87: 2.34
A88: 12.78 | B88: Sinapi | C88: 39471 | D88: DISPOSITIVO DPS CLASSE II, 1 POLO, TENSAO MAXIMA DE 275 V, CORRENTE MAXIMA DE *45* KA (TIPO AC) | E88: un | F88: 2 | G88: 133.33 | H88: 151.46288 | I88: 302.93 | J88: 133.33
A89: 12.79 | B89: Sinapi | C89: 981 | D89: CABO DE COBRE, FLEXIVEL, CLASSE 4 OU 5, ISOLACAO EM PVC/A, ANTICHAMA BWF-B, 1 CONDUTOR, 450/750 V, SECAO NOMINAL 4 Mm² | E89: m | F89: 77.58 | G89: 3.89 | H89: 4.41904 | I89: 342.83 | J89: 3.89
A90: 12.80 | B90: Sinapi | C90: 993 | D90: CABO DE COBRE, FLEXIVEL, CLASSE 4 OU 5, ISOLACAO EM PVC/A, ANTICHAMA BWF-B, COBERTURA PVC-ST1, ANTICHAMA BWF-B, 1 CONDUTOR, 0,6/1 KV, SECAO NOMINAL 1,5 Mm² | E90: m | F90: 396.4 | G90: 2 | H90: 2.272 | I90: 900.62 | J90: 2
A91: 12.81 | B91: Sinapi | C91: 38076 | D91: TOMADAS (2 MODULOS) 2P+T 10A, 250V, CONJUNTO MONTADO PARA EMBUTIR 4" X 2" (PLACA + SUPORTE + MODULOS) | E91: un | F91: 11 | G91: 16.8 | H91: 19.0848 | I91: 209.93 | J91: 16.8
A92: 12.82 | B92: Sinapi | C92: 1871 | D92: CAIXA OCTOGONAL DE FUNDO MOVEL, EM PVC, DE 3" X 3", PARA ELETRODUTO FLEXIVEL CORRUGADO | E92: un | F92: 8 | G92: 6.26 | H92: 7.11136 | I92: 56.89 | J92: 6.26
A93: 12.83 | B93: Sinapi | C93: 2689 | D93: ELETRODUTO PVC FLEXIVEL CORRUGADO, COR AMARELA, DE 20 MM | E93: m | F93: 15.53 | G93: 2.82 | H93: 3.20352 | I93: 49.75 | J93: 2.82
A94: 12.84 | B94: Sinapi | C94: 2688 | D94: ELETRODUTO PVC FLEXIVEL CORRUGADO, COR AMARELA, DE 25 MM | E94: m | F94: 71.74 | G94: 3.06 | H94: 3.47616 | I94: 249.38 | J94: 3.06
A95: 12.85 | B95: Sinapi | C95: 20111 | D95: FITA ISOLANTE ADESIVA ANTICHAMA, USO ATE 750 V, EM ROLO DE 19 MM X 20 M | E95: un | F95: 6 | G95: 17.2 | H95: 19.5392 | I95: 117.24 | J95: 17.2
A96: 12.86 | B96: Sinapi | C96: 1873 | D96: CAIXA DE PASSAGEM, EM PVC, DE 4" X 4", PARA ELETRODUTO FLEXIVEL CORRUGADO | E96: un | F96: 1 | G96: 6.95 | H96: 7.8952 | I96: 7.9 | J96: 6.95
A97: 12.87 | B97: Sinapi | C97: 38063 | D97: INTERRUPTOR PARALELO 10A, 250V, CONJUNTO MONTADO PARA EMBUTIR 4" X 2" (PLACA + SUPORTE + MODULO) | E97: un | F97: 4 | G97: 9.04 | H97: 10.26944 | I97: 41.08 | J97: 9.04
A98: 12.88 | B98: Sinapi | C98: 38078 | D98: INTERRUPTOR PARALELO + TOMADA 2P+T 10A, 250V, CONJUNTO MONTADO PARA EMBUTIR 4" X 2" (PLACA + SUPORTE + MODULOS) | E98: un | F98: 1 | G98: 15.51 | H98: 17.61936 | I98: 17.62 | J98: 15.51
A99: 12.89 | B99: Sinapi | C99: 38775 | D99: LUMINARIA TIPO TARTARUGA PARA AREA EXTERNA EM ALUMINIO, COM GRADE, PARA 1 LAMPADA, BASE E27, POTENCIA MAXIMA 40/60 W (NAO INCLUI LAMPADA) | E99: un | F99: 8 | G99: 80.79 | H99: =(G99*K$2) -> 91.77744 | I99: 734.22 | J99: 80.79
A100: 12.90 | B100: Sinapi | C100: 10569 | D100: CAIXA DE PASSAGEM / DERIVACAO / LUZ, OCTOGONAL 4 X4, EM ACO ESMALTADA, COM FUNDO MOVEL SIMPLES (FMS) | E100: un | F100: 6 | G100: 2.82 | H100: 3.20352 | I100: 19.22 | J100: 2.82
A101: 12.91 | B101: Sinapi | C101: 100954 | D101: TRANSPORTE COM CAMINHÃO CARROCERIA COM GUINDAUTO (MUNCK), MOMENTO MÁXIMO DE CARGA 11,7 TM, EM VIA INTERNA (DENTRO DO CANTEIRO - UNIDADE: TXKM). AF_07/2020 | E101: TXKM | F101: 600 | G101: 8.94 | H101: 10.15584 | I101: 6093.5 | J101: 8.94
A102: 12.92 | B102: Sinapi | C102: 100788 | D102: KIT CAVALETE PARA GÁS - SEM MEDIDOR OU REGULADOR - ENTRADA INDIVIDUAL PRINCIPAL, EM AÇO GALVANIZADO DN 15 E 25 MM (1/2" E 1") - FORNECIMENTO E INSTALAÇÃO | E102: und | F102: 1 | G102: 768.24 | H102: 872.72064 | I102: =ROUND(F102*H102,2) -> 872.72 | J102: 768.24
A103: 12.93 | B103: CPU | C103: CPU008 | D103: CHAPA XADREZ EM ALUMINIO PARA PISO e:3mm, INCLUSO REBITE PARA FIXAÇÃO - APENAS MATERIAL | E103: m² | F103: 56.544 | G103: 524.9824 | H103: 596.3800064 | I103: 33721.71 | J103: =CPU!I157 -> 524.9824
A104: 12.94 | B104: CPU | C104: CPU006 | D104: REVESTIMENTO DE PAREDES EM CHAPAS DE AÇO INOXIDÁVEL AISI 304 - APENAS MATERIAL | E104: m² | F104: 160.29 | G104: 354.846 | H104: 403.105056 | I104: 64613.71 | J104: =CPU!I126 -> 354.846

Sheet CPU
A1: MINISTÉRIO DO DESENVOLVIMENTO REGIONAL - MDR
A2: COMPANHIA DE DESENVOLVIMENTO DOS VALES DO SÃO FRANCISCO E DO PARNAÍBA
A3: SEDE
A4: PLANILHA ORÇAMENTÁRIA DE ESTIMATIVA GERAL PARA O ESTADO DE PERNAMBUCO (15ª SR) | H4: Base SINAPI-PE 03-2025
H5: Data: Maio - 2025
A6: COMPOSIÇÕES DE PREÇO UNITÁRIO
A8: COMPOSIÇÃO DE PREÇO UNITÁRIO | I8: CPU001
A9: DESCRIÇÃO DO SERVIÇO | H9: DATA BASE: | I9: 2025-03-01
A10: EXECUÇÃO DE INSTALAÇÕES HIDROSSANITÁRIAS, EXCLUSIVE EQUIPAMENTOS | H10: UNIDADE: | I10: cj
A11: MÃO DE OBRA
A12: BASE | B12: CÓDIGO | C12: DISCRIMINAÇÃO | D12: UNI | E12: QUANT. | H12: P.UNIT. | I12: P.TOTAL
A13: SINAPI | B13: 88316 | C13: SERVENTE DE OBRAS | D13: h | E13: 80 | H13: 22.95 | I13: =E13*H13 -> 1836
A14: SINAPI | B14: 88309 | C14: PEDREIRO | D14: h | E14: 40 | H14: 28.34 | I14: =E14*H14 -> 1133.6
A15: SUB-TOTAL | I15: =SUM(I13:I14) -> 2969.6
A16: PRODUÇÃO DA EQUIPE | D16: 1 | E16: CUSTO | I16: =SUM(I15) -> 2969.6
A17: TOTAL - R$ | I17: =I16/D16 -> 2969.6
A18: BDI % | I18: 1
A19: TOTAL DO SERVIÇO - R$ | I19: =I17*I18 -> 2969.6
A21: COMPOSIÇÃO DE PREÇO UNITÁRIO | I21: CPU002
A22: DESCRIÇÃO DO SERVIÇO | H22: DATA BASE: | I22: 2025-03-01
A23: EXECUÇÃO DE INSTALAÇÕES ELÉTRICAS, EXCLUSIVE EQUIPAMENTOS | H23: UNIDADE: | I23: cj
A24: MÃO DE OBRA
A25: BASE | B25: CÓDIGO | C25: DISCRIMINAÇÃO | D25: UNI | E25: QUANT. | H25: P.UNIT. | I25: P.TOTAL
A26: SINAPI | B26: 88247 | C26: AUXILIAR DE ELETRICISTA | D26: h | E26: 80 | H26: 24.32 | I26: =E26*H26 -> 1945.6
A27: SINAPI | B27: 88264 | C27: ELETRICISTA | D27: h | E27: 40 | H27: 28.71 | I27: =E27*H27 -> 1148.4
A28: SUB-TOTAL | I28: =SUM(I26:I27) -> 3094
A29: PRODUÇÃO DA EQUIPE | D29: 1 | E29: CUSTO | I29: =SUM(I28) -> 3094
A30: TOTAL - R$ | I30: =I29/D29 -> 3094
A31: BDI % | I31: 1
A32: TOTAL DO SERVIÇO - R$ | I32: =I30*I31 -> 3094
A34: COMPOSIÇÃO DE PREÇO UNITÁRIO | I34: CPU003
A35: DESCRIÇÃO DO SERVIÇO | H35: DATA BASE: | I35: 2025-03-01
A36: CORTE DE CONTAINER PARA ESQUADRIAS | H36: UNIDADE: | I36: m²
A37: MATERIAL
A38: BASE | B38: CÓDIGO | C38: DISCRIMINAÇÃO | D38: UNI | E38: QUANT. | H38: P.UNIT. | I38: P.TOTAL
A39: SINAPI | B39: 11359 | C39: ESMERILHADEIRA ANGULAR ELETRICA, DIAMETRO DO DISCO 7 '' (180 MM), ROTACAO 8500RPM, POTENCIA 2400 W | D39: un | E39: 0.071 | H39: 986.6 | I39: =E39*H39 -> 70.0486
A40: SINAPI | B40: 44531 | C40: DISCO DE CORTE DIAMANTADO SEGMENTADO DIAMETRO DE 180 MM PARA ESMERILHADEIRA 7 " | D40: un | E40: 1 | H40: 103.09 | I40: =E40*H40 -> 103.09
A41: SUB-TOTAL | I41: =SUM(I39:I40) -> 173.1386
A42: MÃO DE OBRA
A43: BASE | B43: CÓDIGO | C43: DISCRIMINAÇÃO | D43: UNI | E43: QUANT. | H43: P.UNIT. | I43: P.TOTAL
A44: SINAPI | B44: 88317 | C44: SOLDADOR COM ENCARGOS COMPLEMENTARES | D44: h | E44: 0.5 | H44: 29.08 | I44: =E44*H44 -> 14.54
A45: SINAPI | B45: 88315 | C45: SERRALHEIRO COM ENCARGOS COMPLEMENTARES | D45: h | E45: 0.5 | H45: 28.14 | I45: =E45*H45 -> 14.07
A46: SUB-TOTAL | I46: =SUM(I44:I45) -> 28.61
A47: PRODUÇÃO DA EQUIPE | D47: 1 | E47: CUSTO | I47: =I46+I41 -> 201.7486
A48: TOTAL - R$ | I48: =I47/D47 -> 201.7486
A49: BDI % | I49: 1
A50: TOTAL DO SERVIÇO - R$ | I50: =I48*I49 -> 201.7486
A52: COMPOSIÇÃO DE PREÇO UNITÁRIO | I52: CPU010
A53: DESCRIÇÃO DO SERVIÇO | H53: DATA BASE: | I53: 2024-07-01
A54: FORNECIMENTO E MONTAGEM DE ESTRUTURA PARA COBERTURA COM ÁREA TOTAL DE 86,27 M² INCLUINDO CALHA E TELHA SANDUÍCHE | H54: UNIDADE: | I54: cj
A55: MÃO DE OBRA
A56: BASE | B56: CÓDIGO | C56: DISCRIMINAÇÃO | D56: UNI | E56: QUANT. | H56: P.UNIT. | I56: P.TOTAL
A57: COTAÇÃO | C57: FABRICAÇÃO E MONTAGEM DE ESTRUTURA METÁLICA PARA COBERTURA DE UNIDADE COM ÁREA TOTAL DE 86,26 M² | D57: cj | E57: 1 | H57: 24877.99 | I57: =E57*H57 -> 24877.99
A58: SUB-TOTAL | I58: =SUM(I57:I57) -> 24877.99
A59: PRODUÇÃO DA EQUIPE | D59: 1 | E59: CUSTO | I59: =SUM(I58) -> 24877.99
A60: TOTAL - R$ | I60: =I59/D59 -> 24877.99
A61: BDI % | I61: 1
A62: TOTAL DO SERVIÇO - R$ | I62: =I60*I61 -> 24877.99
A64: COMPOSIÇÃO DE PREÇO UNITÁRIO | I64: CPU011
A65: DESCRIÇÃO DO SERVIÇO | H65: DATA BASE: | I65: 2024-07-01
A66: FORNECIMENTO E MONTAGEM DE ESTRUTURA PARA COBERTURA COM ÁREA TOTAL DE 137,9 M² INCLUINDO CALHA E TELHA SANDUÍCHE | H66: UNIDADE: | I66: cj
A67: MÃO DE OBRA
A68: BASE | B68: CÓDIGO | C68: DISCRIMINAÇÃO | D68: UNI | E68: QUANT. | H68: P.UNIT. | I68: P.TOTAL
A69: COTAÇÃO | C69: FABRICAÇÃO E MONTAGEM DE ESTRUTURA METÁLICA PARA COBERTURA DE UNIDADE COM ÁREA TOTAL DE 137,9 M² | D69: cj | E69: 1 | H69: 39043.9 | I69: =E69*H69 -> 39043.9
A70: SUB-TOTAL | I70: =SUM(I69:I69) -> 39043.9
A71: PRODUÇÃO DA EQUIPE | D71: 1 | E71: CUSTO | I71: =SUM(I70) -> 39043.9
A72: TOTAL - R$ | I72: =I71/D71 -> 39043.9
A73: BDI % | I73: 1
A74: TOTAL DO SERVIÇO - R$ | I74: =I72*I73 -> 39043.9
A76: COMPOSIÇÃO DE PREÇO UNITÁRIO | I76: CPU004
A77: DESCRIÇÃO DO SERVIÇO | H77: DATA BASE: | I77: 2025-03-01
A78: MODIFICAÇÕES NO CONTAINER COM CORTE POR ESMERILHADEIRA | H78: UNIDADE: | I78: m
A79: MATERIAL
A80: BASE | B80: CÓDIGO | C80: DISCRIMINAÇÃO | D80: UNI | E80: QUANT. | H80: P.UNIT. | I80: P.TOTAL
A81: SINAPI | B81: 11359 | C81: ESMERILHADEIRA ANGULAR ELETRICA, DIAMETRO DO DISCO 7 '' (180 MM), ROTACAO 8500RPM, POTENCIA 2400 W | D81: un | E81: 0.04 | H81: 986.6 | I81: =E81*H81 -> 39.464
A82: SINAPI | B82: 44531 | C82: DISCO DE CORTE DIAMANTADO SEGMENTADO DIAMETRO DE 180 MM PARA ESMERILHADEIRA 7 " | D82: un | E82: 0.5 | H82: 103.09 | I82: =E82*H82 -> 51.545
A83: SUB-TOTAL | I83: =SUM(I81:I82) -> 91.009
A84: MÃO DE OBRA
A85: BASE | B85: CÓDIGO | C85: DISCRIMINAÇÃO | D85: UNI | E85: QUANT. | H85: P.UNIT. | I85: P.TOTAL
A86: SINAPI | B86: 88317 | C86: SOLDADOR COM ENCARGOS COMPLEMENTARES | D86: h | E86: 0.25 | H86: 29.08 | I86: =E86*H86 -> 7.27
A87: SINAPI | B87: 88315 | C87: SERRALHEIRO COM ENCARGOS COMPLEMENTARES | D87: h | E87: 0.25 | H87: 28.14 | I87: =E87*H87 -> 7.035
A88: SUB-TOTAL | I88: =SUM(I86:I87) -> 14.305
A89: PRODUÇÃO DA EQUIPE | D89: 1 | E89: CUSTO | I89: =I88+I83 -> 105.314
A90: TOTAL - R$ | I90: =I89/D89 -> 105.314
A91: BDI % | I91: 1
A92: TOTAL DO SERVIÇO - R$ | I92: =I90*I91 -> 105.314
A94: COMPOSIÇÃO DE PREÇO UNITÁRIO | I94: CPU005
A95: DESCRIÇÃO DO SERVIÇO | H95: DATA BASE: | I95: 2025-03-01
A96: MODIFICAÇÕES NO CONTAINER UNIÃO ATRAVÉS DO PROCESSO DE SOLDAGEM, INCLUSO IÇAMENTO DO CONTAINER | H96: UNIDADE: | I96: m
A97: EQUIPAMENTO
A98: BASE | B98: CÓDIGO | C98: DISCRIMINAÇÃO | D98: UNI | E98: QUANT. | H98: P.UNIT. | I98: P.TOTAL
A99: SINAPI | B99: 92716 | C99: APARELHO PARA CORTE E SOLDA OXI-ACETILENO SOBRE RODAS, INCLUSIVE CILINDROS E MAÇARICOS | D99: chp | E99: 0.1846 | H99: 109.33 | I99: =E99*H99 -> 20.182318
A100: SINAPI | B100: 92715 | C100: APARELHO PARA CORTE E SOLDA OXI-ACETILENO SOBRE RODAS, INCLUSIVE CILINDROS E MAÇARICOS - MATERIAIS NA OPERAÇÃO. | D100: h | E100: 1.56 | H100: 109 | I100: =E100*H100 -> 170.04
A101: SINAPI | B101: 5928 | C101: GUINDAUTO HIDRÁULICO, CAPACIDADE MÁXIMA DE CARGA 6200 KG, MOMENTO MÁXIMO DE CARGA 11,7 TM, ALCANCE MÁXIMO HORIZONTAL 9,70 M, INCLUSIVE CAMINHÃO TOCO PBT 16.000 KG, POTÊNCIA DE 189 CV | D101: chp | E101: 0.2388 | H101: 291.2 | I101: =E101*H101 -> 69.53856
A102: SUB-TOTAL | I102: =SUM(I99:I101) -> 259.760878
A103: SERVIÇOS - COMPOSIÇÕES AUXILIARES
A104: BASE | B104: CÓDIGO | C104: DISCRIMINAÇÃO | D104: UNI | E104: QUANT. | H104: P.UNIT. | I104: P.TOTAL
A105: SINAPI | B105: 98746 | C105: SOLDA DE TOPO EM CHAPA/PERFIL/TUBO DE AÇO CHANFRADO, ESPESSURA=1/4''. | D105: m | E105: 1 | H105: 63.9 | I105: =E105*H105 -> 63.9
A106: SUB-TOTAL | I106: =SUM(I105:I105) -> 63.9
A107: MÃO DE OBRA
A108: BASE | B108: CÓDIGO | C108: DISCRIMINAÇÃO | D108: UNI | E108: QUANT. | H108: P.UNIT. | I108: P.TOTAL
A109: SINAPI | B109: 88317 | C109: SOLDADOR COM ENCARGOS COMPLEMENTARES | D109: h | E109: 1.56 | H109: 29.08 | I109: =E109*H109 -> 45.3648
A110: SUB-TOTAL | I110: =SUM(I109:I109) -> 45.3648
A111: PRODUÇÃO DA EQUIPE | D111: 1 | E111: CUSTO | I111: =I110+I102+I106 -> 369.025678
A112: TOTAL - R$ | I112: =I111/D111 -> 369.025678
A113: BDI % | I113: 1
A114: TOTAL DO SERVIÇO - R$ | I114: =I112*I113 -> 369.025678
A116: COMPOSIÇÃO DE PREÇO UNITÁRIO | I116: CPU006
A117: DESCRIÇÃO DO SERVIÇO | H117: DATA BASE: | I117: 2025-03-01
A118: REVESTIMENTO DE PAREDES EM CHAPAS DE AÇO INOXIDÁVEL AISI 304 - CONSIDERANDO CHAPA DE 1,2mm | H118: UNIDADE: | I118: M²
A119: APENAS MATERIAL
A120: BASE | B120: CÓDIGO | C120: DISCRIMINAÇÃO | D120: UNI | E120: QUANT. | H120: P.UNIT. | I120: P.TOTAL
A121: COTAÇÃO | C121: CHAPAS DE AÇO INOXIDÁVEL AISI 304 | D121: KG | E121: 9.6 | H121: 34 | I121: =E121*H121 -> 326.4
A122: SINAPI | B122: 131 | C122: ADESIVO ESTRUTURAL A BASE DE RESINA EPOXI, BICOMPONENTE, PASTOSO (TIXOTROPICO) | D122: KG | E122: 0.6 | H122: 47.41 | I122: =E122*H122 -> 28.446
A123: SUB-TOTAL | I123: =SUM(I121:I122) -> 354.846
A124: TOTAL - R$ | I124: =I123 -> 354.846
A125: BDI % | I125: 1
A126: TOTAL DO SERVIÇO - R$ | I126: =I124*I125 -> 354.846
A128: COMPOSIÇÃO DE PREÇO UNITÁRIO | I128: CPU007
A129: DESCRIÇÃO DO SERVIÇO | H129: DATA BASE: | I129: 2025-03-01
A130: REVESTIMENTO CERÂMICO PARA PISO COM PLACAS TIPO ESMALTADA DE DIMENSÕES 45x45cm COM ARGAMASSA AC III | H130: UNIDADE: | I130: m²
A131: MATERIAL
A132: BASE | B132: CÓDIGO | C132: DISCRIMINAÇÃO | D132: UNI | E132: QUANT. | H132: P.UNIT. | I132: P.TOTAL
A133: Sinapi | B133: 37596 | C133: ARGAMASSA COLANTE TIPO AC III E | D133: KG | E133: 9.1325 | H133: 3.35 | I133: =E133*H133 -> 30.593875
A134: Sinapi | B134: 1287 | C134: PISO EM CERAMICA ESMALTADA EXTRA, COR LISA, PEI MAIOR OU IGUAL A 4, FORMATO MENOR OU IGUAL A 5 CM2 | D134: m² | E134: 1.1136 | H134: 36.33 | I134: =E134*H134 -> 40.457088
A135: Sinapi | B135: 34357 | C135: REJUNTE CIMENTÍCIO, QUALQUER COR | D135: KG | E135: 0.188 | H135: 5.57 | I135: =E135*H135 -> 1.04716
A136: SUB-TOTAL | I136: =SUM(I133:I135) -> 72.098123
A137: MÃO DE OBRA
A138: BASE | B138: CÓDIGO | C138: DISCRIMINAÇÃO | D138: UNI | E138: QUANT. | H138: P.UNIT. | I138: P.TOTAL
A139: SINAPI | B139: 88317 | C139: AZULEJISTA OU LADRILHISTA COM ENCARGOS COMPLEMENTARES | D139: h | E139: 0.8064 | H139: 27.22 | I139: =E139*H139 -> 21.950208
A140: SINAPI | B140: 88316 | C140: SERVENTE COM ENCARGOS COMPLEMENTARES | D140: h | E140: 0.2068 | H140: 21.05 | I140: =E140*H140 -> 4.35314
A141: SUB-TOTAL | I141: =SUM(I139:I140) -> 26.303348
A142: PRODUÇÃO DA EQUIPE | D142: 1 | E142: CUSTO | I142: =I141+I136 -> 98.401471
A143: TOTAL - R$ | I143: =I142/D142 -> 98.401471
A144: BDI % | I144: 1
A145: TOTAL DO SERVIÇO - R$ | I145: =I143*I144 -> 98.401471
A148: COMPOSIÇÃO DE PREÇO UNITÁRIO | I148: CPU008
A149: DESCRIÇÃO DO SERVIÇO | H149: DATA BASE: | I149: 2025-03-01
A150: CHAPA XADREZ EM ALUMINIO PARA PISO e:3mm, INCLUSO REBITE PARA FIXAÇÃO - MATERIAL | H150: UNIDADE: | I150: m
A151: MATERIAL
A152: BASE | B152: CÓDIGO | C152: DISCRIMINAÇÃO | D152: UNI | E152: QUANT. | H152: P.UNIT. | I152: P.TOTAL
A153: SINAPI | B153: 1337 | C153: CHAPA DE ACO XADREZ PARA PISOS, E = 1/4" (6,30 MM) 54,53 KG/M2 | D153: kg | E153: 38 | H153: 9.08 | I153: =E153*H153 -> 345.04
A154: SINAPI | B154: 10997 | C154: ELETRODO REVESTIDO AWS - E7018, DIAMETRO IGUAL A 4,00 MM | D154: Kg | E154: 2.88 | H154: 62.48 | I154: =E154*H154 -> 179.9424
A155: SUB-TOTAL | I155: =SUM(I153:I154) -> 524.9824
A156: BDI % | I156: 1
A157: TOTAL DO SERVIÇO - R$ | I157: =I155 -> 524.9824
A159: COMPOSIÇÃO DE PREÇO UNITÁRIO | I159: CPU009
A160: DESCRIÇÃO DO SERVIÇO | H160: DATA BASE: | I160: 2025-03-01
A161: CHAPA XADREZ EM ALUMINIO PARA PISO e:3mm, INCLUSO REBITE PARA FIXAÇÃO - MÃO DE OBRA | H161: UNIDADE: | I161: m
A162: MÃO DE OBRA
A163: BASE | B163: CÓDIGO | C163: DISCRIMINAÇÃO | D163: UNI | E163: QUANT. | H163: P.UNIT. | I163: P.TOTAL
A164: SINAPI | B164: 88315 | C164: SERRALHEIRO COM ENCARGOS | D164: H | E164: 8.99 | H164: 28.14 | I164: =E164*H164 -> 252.9786
A165: SINAPI | B165: 88316 | C165: SERVENTE COM ENCARGOS COMPLEMENTARES | D165: H | E165: 6.42 | H165: 22.95 | I165: =E165*H165 -> 147.339
A166: SUB-TOTAL | I166: =SUM(I164:I165) -> 400.3176
A167: PRODUÇÃO DA EQUIPE | D167: 1 | E167: CUSTO | I167: =I166 -> 400.3176
A168: TOTAL - R$ | I168: =I167/D167 -> 400.3176
A169: TOTAL DO SERVIÇO - R$ | I169: =I167 -> 400.3176
A171: COMPOSIÇÃO DE PREÇO UNITÁRIO | I171: CPU0010
A172: DESCRIÇÃO DO SERVIÇO | H172: DATA BASE: | I172: 2025-03-01
A173: REVESTIMENTO DE PAREDES EM CHAPAS DE AÇO INOXIDÁVEL AISI 304 - CONSIDERANDO CHAPA DE 1,2mm | H173: UNIDADE: | I173: M²
A174: APENAS MÃO DE OBRA
A175: BASE | B175: CÓDIGO | C175: DISCRIMINAÇÃO | D175: UNI | E175: QUANT. | H175: P.UNIT. | I175: P.TOTAL
A176: SINAPI | B176: 88317 | C176: SOLDADOR COM ENCARGOS COMPLEMENTARES | D176: h | E176: 0.8 | H176: 27.22 | I176: =E176*H176 -> 21.776
A177: SINAPI | B177: 88315 | C177: SERRALHEIRO COM ENCARGOS COMPLEMENTARES | D177: h | E177: 0.8 | H177: 26.26 | I177: =E177*H177 -> 21.008
A178: SUB-TOTAL | I178: =SUM(I176:I177) -> 42.784
A179: PRODUÇÃO DA EQUIPE | D179: 1 | E179: CUSTO | I179: =I178 -> 42.784
A180: TOTAL - R$ | I180: =I179/D179 -> 42.784
A181: BDI % | I181: 1
A182: TOTAL DO SERVIÇO - R$ | I182: =I180*I181 -> 42.784
A184: COMPOSIÇÃO DE PREÇO UNITÁRIO | I184: CPU011
A185: DESCRIÇÃO DO SERVIÇO | H185: DATA BASE: | I185: 2025-03-01
A186: GUARDA-CORPO DE AÇO CARBONO, MONTANTES TUBULARES DE 1.1/2" ESPAÇADOS EM 0,75M, ALTURA APROXIMADA DE 0,90M, PREPARADO COM FUNDO E TINTA EPÓXI NA COR AMARELA | H186: UNIDADE: | I186: m
A187: MATERIAL
A188: BASE | B188: CÓDIGO | C188: DISCRIMINAÇÃO | D188: UNI | E188: QUANT. | H188: P.UNIT. | I188: P.TOTAL
A189: SINAPI | B189: 1332 | C189: CHAPA DE ACO GROSSA, ASTM A36, E = 3/8 " (9,53 MM) 74,69 KG/M2 | D189: KG | E189: 0,8960000 | H189: 8.07 | I189: =E189*H189 -> 7.23072
A190: SINAPI | B190: 11002 | C190: ELETRODO REVESTIDO AWS - E6013, DIAMETRO IGUAL A 2,50 MM | D190: KG | E190: 0,0650000 | H190: 28.81 | I190: 1.87265
A191: SINAPI | B191: 11964 | C191: PARAFUSO DE ACO TIPO CHUMBADOR PARABOLT, DIAMETRO 3/8", COMPRIMENTO 75 MM | D191: UN | E191: 3,3330000 | H191: 3.29 | I191: 10.96557
A192: SINAPI | B192: 21001 | C192: TUBO ACO CARBONO COM COSTURA, NBR 5580, CLASSE L, DN = 25 MM, E = 2,65 MM, 2,02 KG/M | D192: M | E192: 1.0417 | H192: 22.77 | I192: 23.719509
A193: SINAPI | B193: 21003 | C193: TUBO ACO CARBONO COM COSTURA, NBR 5580, CLASSE L, DN = 40 MM, E = 3,0 MM, 3,34 KG/M | D193: M | E193: 3.025 | H193: 37.42 | I193: 113.1955
A194: SINAPI | B194: 100719 | C194: PINTURA COM TINTA ALQUÍDICA DE FUNDO (TIPO ZARCÃO) PULVERIZADA SOBRE PERFIL METÁLICO EXECUTADO EM FÁBRICA (POR DEMÃO). AF_01/2020_PE | D194: M2 | E194: 1.1 | H194: 12.96 | I194: 14.256
A195: SINAPI | B195: 100729 | C195: PINTURA COM TINTA EPOXÍDICA DE ACABAMENTO PULVERIZADA SOBRE PERFIL METÁLICO EXECUTADO EM FÁBRICA (POR DEMÃO). AF_01/2020_PE | D195: M2 | E195: 1.1 | H195: 24.19 | I195: 26.609
A196: SUB-TOTAL | I196: =SUM(I189:I195) -> 197.848949
A197: MÃO DE OBRA
A198: BASE | B198: CÓDIGO | C198: DISCRIMINAÇÃO | D198: UNI | E198: QUANT. | H198: P.UNIT. | I198: P.TOTAL
A199: SINAPI | B199: 88251 | C199: AUXILIAR DE SERRALHEIRO COM ENCARGOS COMPLEMENTARES | D199: H | E199: 8 | H199: 22.8 | I199: =E199*H199 -> 182.4
A200: SINAPI | B200: 88315 | C200: SERRALHEIRO COM ENCARGOS COMPLEMENTARES | D200: H | E200: 5.333333333 | H200: 28.14 | I200: =E200*H200 -> 150.08
A201: SUB-TOTAL | I201: =SUM(I199:I200) -> 332.48
A202: PRODUÇÃO DA EQUIPE | D202: 1 | E202: CUSTO | I202: =I201+I196 -> 530.328949
A203: TOTAL - R$ | I203: =I202/D202 -> 530.328949
A204: BDI % | I204: 1
A205: TOTAL DO SERVIÇO - R$ | I205: =I203*I204 -> 530.328949
A207: COMPOSIÇÃO DE PREÇO UNITÁRIO | I207: CPU0012
A208: DESCRIÇÃO DO SERVIÇO | H208: DATA BASE: | I208: 2025-03-01
A209: FORNECIMENTO DE CONTAINER DRY BOX 20 PÉS 6,1X2,21X2,6 (COMPXLARGXALTU) | H209: UNIDADE: | I209: un
A210: MATERIAL
A211: BASE | B211: CÓDIGO | C211: DISCRIMINAÇÃO | D211: UNI | E211: QUANT. | H211: P.UNIT. | I211: P.TOTAL
A212: COTAÇÃO | B212: - | C212: CONTAINER DRY BOX 20 PÉS 6,1X2,21X2,6 (COMPXLARGXALTU) | D212: un | E212: 1 | H212: 19023 | I212: =E212*H212 -> 19023
A213: COTAÇÃO | B213: - | C213: FRETE DE CONTAINER TIPO CIF | D213: un | E213: 1 | I213: =E213*H213 -> 0
A214: SUB-TOTAL | I214: =SUM(I212:I213) -> 19023
A215: MÃO DE OBRA
... 42 more rows
